Workbook

Sheet Начална
A1: СПРАВКИ | Z1: 1 | AA1: =IF(ISBLANK(_endDate),"",_endDate) -> 42825
A2: уведомления - първо, трето и четвърто тримесечие | Z2: 2 | AA2: =IF(ISBLANK(_pdeReportingDate),"",_pdeReportingDate) -> 42849
A3: на индивидуална основа | Z3: 3 | AA3: =IF(ISBLANK(_authorName),"",_authorName) -> Катинка Иванова Ангелова
A4: по чл. 33а1, т. 1 от Наредба № 2
A5: за публични дружества, други емитенти на ценни книжа, акционерни дружества със специална инвестиционна цел и лица по §1д от ЗППЦК
A8: Данни за отчетния период
A9: Начална дата: | B9: 2017-01-01
A10: Крайна дата: | B10: 2017-03-31
A11: Дата на съставяне: | B11: 2017-04-24
A13: Данни за лицето
A14: Наименование на лицето: | B14: "МБАЛ - ТЪРГОВИЩЕ" АД
A15: Тип лице: | B15: Лице по §1д от ЗППЦК
A16: ЕИК: | B16: 125501290
A17: Представляващ/и: | B17: д-р Иван Василев Светулков
A18: Начин на представляване: | B18: Изпълнителен Директор
A19: Адрес на управление: | B19: гр.Търговище, кв.Запад
A20: Адрес за кореспонденция: | B20: гр.Търговище, кв.Запад
A21: Телефон: | B21: 0601/68888
A22: Факс: | B22: 0601/
A23: E-mail: | B23: mbal_trg@mail.bg
A24: Уеб сайт: | B24: www.infostock.bg
A25: Медия: | B25: disclosure@infostock.bg
A26: Съставител на отчета: | B26: Катинка Иванова Ангелова
A27: Длъжност на съставителя: | B27: Главен Счетоводител
A29: * Последна актуализация на 14.09.2016 г.

Sheet 1-Баланс
A1: СЧЕТОВОДЕН БАЛАНС
A2: =CONCATENATE("(",LOWER(reportConsolidation),")") -> (на индивидуална основа)
A4: =CONCATENATE("на ",UPPER(pdeName)) -> на "МБАЛ - ТЪРГОВИЩЕ" АД
A5: =CONCATENATE("ЕИК по БУЛСТАТ: ", pdeBulstat) -> ЕИК по БУЛСТАТ: 125501290
A6: =CONCATENATE("към ",TEXT(endDate,"dd.mm.yyyy")," г.") -> към 31.03.2017 г.
H7: (в хил.лева)
A8: АКТИВИ | B8: Код на реда | C8: Текущ период | D8: Предходен период | E8: СОБСТВЕН КАПИТАЛ, МАЛЦИНСТВЕНО УЧАСТИЕ И ПАСИВИ | F8: Код на реда | G8: Текущ период | H8: Предходен период
A9: а | B9: б | C9: 1 | D9: 2 | E9: а | F9: б | G9: 1 | H9: 2
A10: А. НЕТЕКУЩИ АКТИВИ | E10: А. СОБСТВЕН КАПИТАЛ
A11: I. Имоти, машини, съоръжения и оборудване | E11: I. Основен капитал
A12: 1. Земи (терени ) | B12: 1-0011 | C12: 846 | D12: 846 | E12: Записан и внесен капитал т.ч.: | F12: 1-0411 | G12: 3401 | H12: 3401
A13: 2. Сгради и конструкции | B13: 1-0012 | C13: 3976 | D13: 4006 | E13: обикновени акции | F13: 1-0411-1
A14: 3. Машини и оборудване | B14: 1-0013 | C14: 1329 | D14: 1253 | E14: привилегировани акции | F14: 1-0411-2
A15: 4. Съоръжения | B15: 1-0014 | C15: 310 | D15: 315 | E15: Изкупени собствени обикновени акции | F15: 1-0417
A16: 5. Транспортни средства | B16: 1-0015 | C16: 37 | D16: 43 | E16: Изкупени собствени привилегировани акции | F16: 1-0417-1
A17: 6. Стопански инвентар | B17: 1-0017-1 | C17: 97 | D17: 122 | E17: Невнесен капитал | F17: 1-0416
A18: 7. Разходи за придобиване и ликвидация на дълготрайни материални активи | B18: 1-0018 | E18: Общо за група І: | F18: 1-0410 | G18: =G12+G15+G16+G17 -> 3401 | H18: =H12+H15+H16+H17 -> 3401
A19: 8. Други | B19: 1-0017 | E19: II. Резерви
A20: Общо за група I: | B20: 1-0010 | C20: =SUM(C12:C19) -> 6595 | D20: =SUM(D12:D19) -> 6585 | E20: 1. Премийни резерви при емитиране на ценни книжа | F20: 1-0421
A21: II. Инвестиционни имоти | B21: 1-0041 | E21: 2. Резерв от последващи оценки на активите и пасивите | F21: 1-0422 | G21: 2558 | H21: 2558
A22: III. Биологични активи | B22: 1-0016 | E22: 3. Целеви резерви, в т.ч.: | F22: 1-0423 | G22: =SUM(G23:G25) -> 263 | H22: =SUM(H23:H25) -> 263
A23: IV. Нематериални активи | E23: общи резерви | F23: 1-0424 | G23: 165 | H23: 165
A24: 1. Права върху собственост | B24: 1-0021 | E24: специализирани резерви | F24: 1-0425
A25: 2. Програмни продукти | B25: 1-0022 | C25: 1 | D25: 1 | E25: други резерви | F25: 1-0426 | G25: 98 | H25: 98
A26: 3. Продукти от развойна дейност | B26: 1-0023 | E26: Общо за група II: | F26: 1-0420 | G26: =G20+G21+G22 -> 2821 | H26: =H20+H21+H22 -> 2821
A27: 4. Други | B27: 1-0024 | E27: III. Финансов резултат
A28: Общо за група IV: | B28: 1-0020 | C28: =SUM(C24:C27) -> 1 | D28: =SUM(D24:D27) -> 1 | E28: 1. Натрупана печалба (загуба) в т.ч.: | F28: 1-0451 | G28: =SUM(G29:G31) -> -1684 | H28: =SUM(H29:H31) -> -1063
E29: неразпределена печалба | F29: 1-0452
A30: V. Търговска репутация | E30: непокрита загуба | F30: 1-0453 | G30: -1684 | H30: -1063
A31: 1. Положителна репутация | B31: 1-0051 | E31: еднократен ефект от промени в счетоводната политика | F31: 1-0451-1
A32: 2. Отрицателна репутация | B32: 1-0052 | E32: 2. Текуща печалба | F32: 1-0454
A33: Общо за група V: | B33: 1-0050 | C33: =C31+C32 -> 0 | D33: =D31+D32 -> 0 | E33: 3. Текуща загуба | F33: 1-0455 | G33: -12 | H33: -621
A34: VI. Финансови активи | E34: Общо за група III: | F34: 1-0450 | G34: =G28+G32+G33 -> -1696 | H34: =H28+H32+H33 -> -1684
A35: 1. Инвестиции в: | B35: 1-0031 | C35: =SUM(C36:C39) -> 2 | D35: =SUM(D36:D39) -> 2
A36: дъщерни предприятия | B36: 1-0032
A37: смесени предприятия | B37: 1-0033 | E37: ОБЩО ЗА РАЗДЕЛ "А" (I+II+III): | F37: 1-0400 | G37: =G26+G18+G34 -> 4526 | H37: =H26+H18+H34 -> 4538
A38: асоциирани предприятия | B38: 1-0034 | C38: 2 | D38: 2
A39: други предприятия | B39: 1-0035
A40: 2. Държани до настъпване на падеж | B40: 1-0042 | C40: =C41+C42+C44 -> 0 | D40: =D41+D42+D44 -> 0 | E40: Б. МАЛЦИНСТВЕНО УЧАСТИЕ | F40: 1-0400-1
A41: държавни ценни книжа | B41: 1-0042-1
A42: облигации, в т.ч.: | B42: 1-0042-2 | E42: В. НЕТЕКУЩИ ПАСИВИ
A43: общински облигации | B43: 1-0042-3 | E43: I. Търговски и други задължения
A44: други инвестиции, държани до настъпване на падеж | B44: 1-0042-4 | E44: 1. Задължения към свързани предприятия | F44: 1-0511
A45: 3. Други | B45: 1-0042-5 | E45: 2.Задължения по получени заеми от банки и небанкови финансови институции | F45: 1-0512
A46: Общо за група VI: | B46: 1-0040 | C46: =C35+C40+C45 -> 2 | D46: =D35+D40+D45 -> 2 | E46: 3. Задължения по ЗУНК | F46: 1-0512-1
A47: VII. Търговски и други вземания | E47: 4. Задължения по получени търговски заеми | F47: 1-0514
A48: 1. Вземания от свързани предприятия | B48: 1-0044 | E48: 5. Задължения по облигационни заеми | F48: 1-0515
A49: 2. Вземания по търговски заеми | B49: 1-0045 | E49: 6. Други | F49: 1-0517
A50: 3. Вземания по финансов лизинг | B50: 1-0046-1 | E50: Общо за група I: | F50: 1-0510 | G50: =SUM(G44:G49) -> 0 | H50: =SUM(H44:H49) -> 0
A51: 4. Други | B51: 1-0046
A52: Общо за група VII: | B52: 1-0040-1 | C52: =SUM(C48:C51) -> 0 | D52: =SUM(D48:D51) -> 0 | E52: II. Други нетекущи пасиви | F52: 1-0510-1
E53: III. Приходи за бъдещи периоди | F53: 1-0520
A54: VIII. Разходи за бъдещи периоди | B54: 1-0060 | E54: IV. Пасиви по отсрочени данъци | F54: 1-0516
A55: IX. Активи по отсрочени данъци | B55: 1-0060-1 | C55: 205 | D55: 205 | E55: V.Финансирания | F55: 1-0520-1
A56: ОБЩО ЗА РАЗДЕЛ "А" (I+II+III+IV+V+VI+VII+VIII+IX): | B56: 1-0100 | C56: =C20+C21+C22+C28+C33+C46+C52+C54+C55 -> 6803 | D56: =D20+D21+D22+D28+D33+D46+D52+D54+D55 -> 6793 | E56: ОБЩО ЗА РАЗДЕЛ "В" (I+II+III+IV+V): | F56: 1-0500 | G56: =G50+G52+G53+G54+G55 -> 0 | H56: =H50+H52+H53+H54+H55 -> 0
A57: Б. ТЕКУЩИ АКТИВИ | E57: Г. ТЕКУЩИ ПАСИВИ
A58: I. Материални запаси | E58: I. Търговски и други задължения
A59: 1. Материали | B59: 1-0071 | C59: 159 | D59: 207 | E59: 1. Задължения по получени заеми към банки и небанкови финансови институции | F59: 1-0612
A60: 2. Продукция | B60: 1-0072 | E60: 2. Текуща част от нетекущите задължения | F60: 1-0510-2
A61: 3. Стоки | B61: 1-0073 | E61: 3. Текущи задължения, в т.ч.: | F61: 1-0630 | G61: =SUM(G62:G68) -> 3484 | H61: =SUM(H62:H68) -> 3522
A62: 4. Незавършено производство | B62: 1-0076 | E62: задължения към свързани предприятия | F62: 1-0611
A63: 5. Биологични активи | B63: 1-0074 | E63: задължения по получени търговски заеми | F63: 1-0614
A64: 6. Други | B64: 1-0077 | E64: задължения към доставчици и клиенти | F64: 1-0613 | G64: 2570 | H64: 2595
A65: Общо за група I: | B65: 1-0070 | C65: =SUM(C59:C64) -> 159 | D65: =SUM(D59:D64) -> 207 | E65: получени аванси | F65: 1-0613-1
E66: задължения към персонала | F66: 1-0615 | G66: 619 | H66: 650
A67: II. Търговски и други вземания | E67: задължения към осигурителни предприятия | F67: 1-0616 | G67: 245 | H67: 238
A68: 1. Вземания от свързани предприятия | B68: 1-0081 | E68: данъчни задължения | F68: 1-0617 | G68: 50 | H68: 39
A69: 2. Вземания от клиенти и доставчици | B69: 1-0082 | C69: 1577 | D69: 1440 | E69: 4. Други | F69: 1-0618 | G69: 106 | H69: 97
A70: 3. Предоставени аванси | B70: 1-0086-1 | E70: 5. Провизии | F70: 1-0619
A71: 4. Вземания по предоставени търговски заеми | B71: 1-0083 | E71: Общо за група І: | F71: 1-0610 | G71: =G59+G60+G61+G69+G70 -> 3590 | H71: =H59+H60+H61+H69+H70 -> 3619
A72: 5. Съдебни и присъдени вземания | B72: 1-0084
A73: 6. Данъци за възстановяване | B73: 1-0085 | E73: II. Други текущи пасиви | F73: 1-0610-1
A74: 7. Вземания от персонала | B74: 1-0086-2
A75: 8. Други | B75: 1-0086 | C75: 5 | D75: 6 | E75: III. Приходи за бъдещи периоди | F75: 1-0700 | G75: 1000 | H75: 1000
A76: Общо за група II: | B76: 1-0080 | C76: =SUM(C68:C75) -> 1582 | D76: =SUM(D68:D75) -> 1446
E77: IV. Финансирания | F77: 1-0700-1 | G77: 523 | H77: 414
A78: III.Финансови активи
A79: 1. Финансови активи, държани за търгуване в т. ч. | B79: 1-0093 | C79: =SUM(C80:C82) -> 0 | D79: =SUM(D80:D82) -> 0 | E79: ОБЩО ЗА РАЗДЕЛ "Г" (I+II+III+IV): | F79: 1-0750 | G79: =G71+G73+G75+G77 -> 5113 | H79: =H71+H73+H75+H77 -> 5033
A80: дългови ценни книжа | B80: 1-0093-1
A81: дeривативи | B81: 1-0093-2
A82: други | B82: 1-0093-3
A83: 2. Финансови активи, обявени за продажба | B83: 1-0093-4
A84: 3. Други | B84: 1-0095
A85: Общо за група III: | B85: 1-0090 | C85: =C84+C83+C79 -> 0 | D85: =D84+D83+D79 -> 0
A87: IV. Парични средства и парични еквиваленти
A88: 1. Парични средства в брой | B88: 1-0151 | C88: 8 | D88: 8
A89: 2. Парични средства в безсрочни депозити | B89: 1-0153 | C89: 1087 | D89: 1117
A90: 3. Блокирани парични средства | B90: 1-0155
A91: 4. Парични еквиваленти | B91: 1-0157
A92: Общо за група IV: | B92: 1-0150 | C92: =SUM(C88:C91) -> 1095 | D92: =SUM(D88:D91) -> 1125
A93: V. Разходи за бъдещи периоди | B93: 1-0160
A94: ОБЩО ЗА РАЗДЕЛ "Б"(I+II+III+IV+V) | B94: 1-0200 | C94: =C65+C76+C85+C92+C93 -> 2836 | D94: =D65+D76+D85+D92+D93 -> 2778
A95: ОБЩО АКТИВИ (А + Б): | B95: 1-0300 | C95: =C94+C56 -> 9639 | D95: =D94+D56 -> 9571 | E95: СОБСТВЕН КАПИТАЛ, МАЛЦИНСТВЕНО УЧАСТИЕ И ПАСИВИ (А+Б+В+Г): | F95: 1-0800 | G95: =G37+G40+G56+G79 -> 9639 | H95: =H37+H40+H56+H79 -> 9571
A98: Дата на съставяне: | B98: =pdeReportingDate -> 2017-04-24
A100: Съставител: | B100: =authorName -> Катинка Иванова Ангелова
A102: Представляващ/и:
B103: ..............................................
B104: /д-р Иван Василев Светулков/

Sheet 2-Отчет за доходите
A1: ОТЧЕТ ЗА ДОХОДИТЕ
A2: =CONCATENATE("(",LOWER(reportConsolidation),")") -> (на индивидуална основа)
A4: =CONCATENATE("на ",UPPER(pdeName)) -> на "МБАЛ - ТЪРГОВИЩЕ" АД
A5: =CONCATENATE("ЕИК по БУЛСТАТ: ", pdeBulstat) -> ЕИК по БУЛСТАТ: 125501290
A6: =CONCATENATE("към ",TEXT(endDate,"dd.mm.yyyy")," г.") -> към 31.03.2017 г.
H7: (в хил.лева)
A8: РАЗХОДИ | B8: Код на реда | C8: Текущ период | D8: Предходен период | E8: ПРИХОДИ | F8: Код на реда | G8: Текущ период | H8: Предходен период
A9: а | B9: б | C9: 1 | D9: 2 | E9: а | F9: б | G9: 1 | H9: 2
A10: А. Разходи за дейността | E10: А. Приходи от дейността
A11: I. Разходи по икономически елементи | E11: I. Нетни приходи от продажби на:
A12: 1. Разходи за материали | B12: 2-1120 | C12: 1227 | D12: 1260 | E12: 1. Продукция | F12: 2-1551 | G12: 5 | H12: 6
A13: 2. Разходи за външни услуги | B13: 2-1130 | C13: 167 | D13: 157 | E13: 2. Стоки | F13: 2-1552
A14: 3. Разходи за амортизации | B14: 2-1160 | C14: 110 | D14: 109 | E14: 3. Услуги | F14: 2-1560 | G14: 2995 | H14: 3043
A15: 4. Разходи за възнаграждения | B15: 2-1140 | C15: 1638 | D15: 1776 | E15: 4. Други | F15: 2-1556
A16: 5. Разходи за осигуровки | B16: 2-1150 | C16: 307 | D16: 323 | E16: Общо за група I: | F16: 2-1610 | G16: =SUM(G12:G15) -> 3000 | H16: =SUM(H12:H15) -> 3049
A17: 6. Балансова стойност на продадени активи (без продукция) | B17: 2-1010
A18: 7. Изменение на запасите от продукция и незавършено производство | B18: 2-1030 | E18: II. Приходи от финансирания | F18: 2-1620 | G18: 452 | H18: 61
A19: 8. Други, в т.ч.: | B19: 2-1170 | C19: 14 | D19: 14 | E19: в т.ч. от правителството | F19: 2-1621 | G19: 398 | H19: 398
A20: обезценка на активи | B20: 2-1171
A21: провизии | B21: 2-1172 | E21: III. Финансови приходи
A22: Общо за група I: | B22: 2-1100 | C22: =SUM(C12:C18)+C19 -> 3463 | D22: =SUM(D12:D18)+D19 -> 3639 | E22: 1. Приходи от лихви | F22: 2-1710
E23: 2. Приходи от дивиденти | F23: 2-1721
A24: II. Финансови разходи | E24: 3. Положителни разлики от операции с финансови активи и инструменти | F24: 2-1730
A25: 1. Разходи за лихви | B25: 2-1210 | E25: 4. Положителни разлики от промяна на валутни курсове | F25: 2-1740
A26: 2. Отрицателни разлики от операции с финансови активи и инструменти | B26: 2-1220 | E26: 5. Други | F26: 2-1745
A27: 3. Отрицателни разлики от промяна на валутни курсове | B27: 2-1230 | E27: Общо за група III: | F27: 2-1700 | G27: =SUM(G22:G26) -> 0 | H27: =SUM(H22:H26) -> 0
A28: 4. Други | B28: 2-1240 | C28: 1 | D28: 1
A29: Общо за група II: | B29: 2-1200 | C29: =SUM(C25:C28) -> 1 | D29: =SUM(D25:D28) -> 1
A31: Б. Общо разходи за дейността (I + II) | B31: 2-1300 | C31: =C29+C22 -> 3464 | D31: =D29+D22 -> 3640 | E31: Б. Общо приходи от дейността (I + II + III): | F31: 2-1600 | G31: =G16+G18+G27 -> 3452 | H31: =H16+H18+H27 -> 3110
A33: В. Печалба от дейността | B33: 2-1310 | C33: =IF((G31-C31)>0,G31-C31,0) -> 0 | D33: =IF((H31-D31)>0,H31-D31,0) -> 0 | E33: В. Загуба от дейността | F33: 2-1810 | G33: =IF((C31-G31)>0,C31-G31,0) -> 12 | H33: =IF((D31-H31)>0,D31-H31,0) -> 530
A34: III. Дял от печалбата на асоциирани и съвместни предприятия | B34: 2-1250-1 | E34: IV. Дял от загубата на асоциирани и съвместни предприятия | F34: 2-1810-1
A35: IV. Извънредни разходи | B35: 2-1250 | E35: V. Извънредни приходи | F35: 2-1750
A36: Г. Общо разходи (Б+ III +IV) | B36: 2-1350 | C36: =C31-C34+C35 -> 3464 | D36: =D31-D34+D35 -> 3640 | E36: Г. Общо приходи (Б + IV + V) | F36: 2-1800 | G36: =G35-G34+G31 -> 3452 | H36: =H35-H34+H31 -> 3110
A37: Д. Печалба преди облагане с данъци | B37: 2-1400 | C37: =IF((G36-C36)>0,G36-C36,0) -> 0 | D37: =IF((H36-D36)>0,H36-D36,0) -> 0 | E37: Д. Загуба преди облагане с данъци | F37: 2-1850 | G37: =IF((C36-G36)>0,C36-G36,0) -> 12 | H37: =IF((D36-H36)>0,D36-H36,0) -> 530
A38: V. Разходи за данъци | B38: 2-1450 | C38: =C39+C40+C41 -> 0 | D38: =D39+D40+D41 -> 0
A39: 1.Разходи за текущи корпоративни данъци върху печалбата | B39: 2-1451
A40: 2. Разход /(икономия) на отсрочени корпоративни данъци върху печалбата | B40: 2-1452
A41: 3. Други | B41: 2-1453
A42: E. Печалба след облагане с данъци (Д - V) | B42: 2-0454 | C42: =+IF((G36-C36-C38)>0,G36-C36-C38,0) -> 0 | D42: =+IF((H36-D36-D38)>0,H36-D36-D38,0) -> 0 | E42: E. Загуба след облагане с данъци (Д + V) | F42: 2-0455 | G42: =IF(G37>0,IF(C38+G37<0,0,C38+G37),IF(C37-C38<0,C38-C37,0)) -> 12 | H42: =IF(H37>0,IF(D38+H37<0,0,D38+H37),IF(D37-D38<0,D38-D37,0)) -> 530
A43: в т.ч. за малцинствено участие | B43: 2-0454-1 | E43: в т.ч. за малцинствено участие | F43: 2-0455-1
A44: Ж. Нетна печалба за периода | B44: 2-0454-2 | C44: =IF(G42=0,IF(C42-C43>0,C42-C43+G43,0),IF(G42-G43<0,G43-G42+C42,0)) -> 0 | D44: =IF(H42=0,IF(D42-D43>0,D42-D43+H43,0),IF(H42-H43<0,H43-H42+D42,0)) -> 0 | E44: Ж. Нетна загуба за периода | F44: 2-0455-2 | G44: =IF(C42=0,IF(G42-G43>0,G42-G43+C43,0),IF(C42-C43<0,C43-C42+G43,0)) -> 12 | H44: =IF(D42=0,IF(H42-H43>0,H42-H43+D43,0),IF(D42-D43<0,D43-D42+H43,0)) -> 530
A45: Всичко (Г+ V + Е): | B45: 2-1500 | C45: =C36+C38+C42 -> 3464 | D45: =D36+D38+D42 -> 3640 | E45: Всичко (Г + E): | F45: 2-1900 | G45: =G42+G36 -> 3464 | H45: =H42+H36 -> 3640
A47: Забележка: Справка № 2 - Отчет за доходите се изготвя само с натрупване.
A50: Дата на съставяне: | B50: =pdeReportingDate -> 2017-04-24
A52: Съставител: | B52: =authorName -> Катинка Иванова Ангелова
A54: Представляващ/и:
B55: ..................................................
B56: /д-р Иван Василев Светулков/

Sheet 3-Отчет за паричния поток
A1: ОТЧЕТ ЗА ПАРИЧНИТЕ ПОТОЦИ ПО ПРЕКИЯ МЕТОД
A2: =CONCATENATE("(",LOWER(reportConsolidation),")") -> (на индивидуална основа)
A4: =CONCATENATE("на ",UPPER(pdeName)) -> на "МБАЛ - ТЪРГОВИЩЕ" АД
A5: =CONCATENATE("ЕИК по БУЛСТАТ: ", pdeBulstat) -> ЕИК по БУЛСТАТ: 125501290
A6: =CONCATENATE("към ",TEXT(endDate,"dd.mm.yyyy")," г.") -> към 31.03.2017 г.
D7: (в хил.лева)
A8: ПАРИЧНИ ПОТОЦИ | B8: Код на реда | C8: Текущ период | D8: Предходен период
A9: а | B9: б | C9: 1 | D9: 2
A10: А. Парични потоци от оперативна дейност
A11: 1. Постъпления от клиенти | B11: 3-2201 | C11: 3272 | D11: 2907
A12: 2. Плащания на доставчици | B12: 3-2201-1 | C12: -1431 | D12: -1603
A13: 3. Плащания/постъпления, свързани с финансови активи, държани с цел търговия | B13: 3-2202
A14: 4. Плащания, свързани с възнаграждения | B14: 3-2203 | C14: -1929 | D14: -1973
A15: 5. Платени /възстановени данъци (без корпоративен данък върху печалбата) | B15: 3-2206
A16: 6. Платени корпоративни данъци върху печалбата | B16: 3-2206-1
A17: 7. Получени лихви | B17: 3-2204
A18: 8. Платени банкови такси и лихви върху краткосрочни заеми за оборотни средства | B18: 3-2204-1
A19: 9. Курсови разлики | B19: 3-2205
A20: 10. Други постъпления /плащания от оперативна дейност | B20: 3-2208 | C20: 59 | D20: 31
A21: Нетен паричен поток от оперативна дейност (А): | B21: 3-2200 | C21: =SUM(C11:C20) -> -29 | D21: =SUM(D11:D20) -> -638
A22: Б. Парични потоци от инвестиционна дейност
A23: 1. Покупка на дълготрайни активи | B23: 3-2301
A24: 2. Постъпления от продажба на дълготрайни активи | B24: 3-2301-1
A25: 3. Предоставени заеми | B25: 3-2302
A26: 4. Възстановени (платени) предоставени заеми, в т.ч. по финансов лизинг | B26: 3-2302-1
A27: 5. Получени лихви по предоставени заеми | B27: 3-2302-2
A28: 6. Покупка на инвестиции | B28: 3-2302-3
A29: 7. Постъпления от продажба на инвестиции | B29: 3-2302-4
A30: 8. Получени дивиденти от инвестиции | B30: 3-2303
A31: 9. Курсови разлики | B31: 3-2305
A32: 10. Други постъпления/ плащания от инвестиционна дейност | B32: 3-2306
A33: Нетен поток от инвестиционна дейност (Б): | B33: 3-2300 | C33: =SUM(C23:C32) -> 0 | D33: =SUM(D23:D32) -> 0
A34: В. Парични потоци от финансова дейност
A35: 1. Постъпления от емитиране на ценни книжа | B35: 3-2401
A36: 2. Плащания при обратно придобиване на ценни книжа | B36: 3-2401-1
A37: 3. Постъпления от заеми | B37: 3-2403
A38: 4. Платени заеми | B38: 3-2403-1
A39: 5. Платени задължения по лизингови договори | B39: 3-2405
A40: 6. Платени лихви, такси, комисиони по заеми с инвестиционно предназначение | B40: 3-2404
A41: 7 . Изплатени дивиденти | B41: 3-2404-1
A42: 8. Други постъпления/ плащания от финансова дейност | B42: 3-2407 | C42: -1 | D42: -1
A43: Нетен паричен поток от финансова дейност (В): | B43: 3-2400 | C43: =SUM(C35:C42) -> -1 | D43: =SUM(D35:D42) -> -1
A44: Г. Изменения на паричните средства през периода (А+Б+В): | B44: 3-2500 | C44: =C43+C33+C21 -> -30 | D44: =D43+D33+D21 -> -639
A45: Д. Парични средства в началото на периода | B45: 3-2600 | C45: 1125 | D45: 792
A46: Е. Парични средства в края на периода, в т.ч.: | B46: 3-2700 | C46: =C45+C44 -> 1095 | D46: =D45+D44 -> 153
A47: наличност в касата и по банкови сметки | B47: 3-2700-1
A48: блокирани парични средства | B48: 3-2700-2
A50: Забележка:
A51: В клетката "Парични средства в началото на периода" се поставя стойността на на паричните средства в началото на съответната година.
A54: Дата на съставяне: | B54: =pdeReportingDate -> 2017-04-24
A56: Съставител: | B56: =authorName -> Катинка Иванова Ангелова
A58: Представляващ/и:
B59: .........................
B60: /д-р Иван Василев Светулков/
B62: .........................

Sheet 4-Отчет за собствения капитал
A1: ОТЧЕТ ЗА ИЗМЕНЕНИЯТА В СОБСТВЕНИЯ КАПИТАЛ
A2: =CONCATENATE("(",LOWER(reportConsolidation),")") -> (на индивидуална основа)
A4: =CONCATENATE("на ",UPPER(pdeName)) -> на "МБАЛ - ТЪРГОВИЩЕ" АД
A5: =CONCATENATE("ЕИК по БУЛСТАТ: ", pdeBulstat) -> ЕИК по БУЛСТАТ: 125501290
A6: =CONCATENATE("към ",TEXT(endDate,"dd.mm.yyyy")," г.") -> към 31.03.2017 г.
M7: ( в хил.лева)
A8: ПОКАЗАТЕЛИ | B8: Код на реда | C8: Основен капитал | D8: Резерви | I8: Натрупани печалби/загуби | K8: Резерв от преводи | L8: Общо собствен капитал
D9: премии от емисия (премиен резерв) | E9: резерв от последващи оценки | F9: целеви резерви | I9: печалба | J9: загуба | M9: Малцинствено участие
F10: общи | G10: специали зирани | H10: други
A11: а | C11: 1 | D11: 2 | E11: 3 | F11: 4 | G11: 5 | H11: 6 | I11: 7 | J11: 8 | K11: 9 | L11: 10 | M11: 11
A12: Код на реда - б | C12: 1-0410 | D12: 1-0410 | E12: 1-0422 | F12: 1-0424 | G12: 1-0425 | H12: 1-0426 | I12: 1-0452 | J12: 1-0453 | K12: 4-0426-1 | L12: 1-0400 | M12: 1-0400-1
A13: Салдо в началото на отчетния период | B13: 4-01 | C13: ='1-Баланс'!H18 -> 3401 | D13: ='1-Баланс'!H20 -> 0 | E13: ='1-Баланс'!H21 -> 2558 | F13: ='1-Баланс'!H23 -> 165 | G13: ='1-Баланс'!H24 -> 0 | H13: 98 | I13: ='1-Баланс'!H29+'1-Баланс'!H32 -> 0 | J13: ='1-Баланс'!H30+'1-Баланс'!H33 -> -1684 | L13: =SUM(C13:K13) -> 4538 | M13: ='1-Баланс'!H40 -> 0
A14: Промени в началните салда поради: | B14: 4-15 | C14: =C15+C16 -> 0 | D14: =D15+D16 -> 0 | E14: 0 | F14: 0 | G14: 0 | H14: 0 | I14: 0 | J14: 0 | K14: 0 | L14: =SUM(C14:K14) -> 0 | M14: 0
A15: Ефект от промени в счетоводната политика | B15: 4-15-1 | L15: 0
A16: Фундаментални грешки | B16: 4-15-2 | L16: 0
A17: Коригирано салдо в началото на отчетния период | B17: 4-01-1 | C17: =C13+C14 -> 3401 | D17: =D13+D14 -> 0 | E17: 2558 | F17: 165 | G17: 0 | H17: 98 | I17: 0 | J17: -1684 | K17: 0 | L17: 4538 | M17: 0
A18: Нетна печалба/загуба за периода | B18: 4-05 | I18: =+'1-Баланс'!G32 -> 0 | J18: =+'1-Баланс'!G33 -> -12 | L18: -12
A19: 1. Разпределение на печалбата за: | B19: 4-06 | C19: =C20+C21 -> 0 | D19: =D20+D21 -> 0 | E19: =E20+E21 -> 0 | F19: =F20+F21 -> 0 | G19: 0 | H19: 0 | I19: 0 | J19: =J20+J21 -> 0 | K19: 0 | L19: 0 | M19: =M20+M21 -> 0
A20: дивиденти | B20: 4-07 | L20: =SUM(C20:K20) -> 0
A21: други | B21: 4-07-1 | L21: 0
A22: 2. Покриване на загуби | B22: 4-08 | L22: 0
A23: 3. Последващи оценки на дълготрайни материални и нематериални активи, в т.ч. | B23: 4-09 | C23: =C24-C25 -> 0 | D23: =D24-D25 -> 0 | E23: 0 | F23: 0 | G23: 0 | H23: 0 | I23: 0 | J23: 0 | K23: 0 | L23: 0 | M23: 0
A24: увеличения | B24: 4-10 | L24: 0
A25: намаления | B25: 4-11 | L25: 0
A26: 4. Последващи оценки на финансови активи и инструменти, в т.ч. | B26: 4-12 | C26: =C27-C28 -> 0 | D26: =D27-D28 -> 0 | E26: 0 | F26: 0 | G26: 0 | H26: 0 | I26: 0 | J26: 0 | K26: 0 | L26: 0 | M26: 0
A27: увеличения | B27: 4-13 | L27: 0
A28: намаления | B28: 4-14 | L28: 0
A29: 5. Ефект от отсрочени данъци | B29: 4-16-1 | L29: 0
A30: 6. Други изменения | B30: 4-16 | L30: 0
A31: Салдо към края на отчетния период | B31: 4-17 | C31: =C19+C22+C23+C26+C30+C29+C17+C18 -> 3401 | D31: =D19+D22+D23+D26+D30+D29+D17+D18 -> 0 | E31: 2558 | F31: 165 | G31: 0 | H31: 98 | I31: 0 | J31: -1696 | K31: 0 | L31: 4526 | M31: 0
A32: 7. Промени от преводи на годишни финансови отчети на предприятия в чужбина | B32: 4-18 | L32: 0
A33: 8. Промени от преизчисляване на финансови отчети при свръхинфлация | B33: 4-19 | L33: 0
A34: Собствен капитал към края на отчетния период | B34: 4-20 | C34: =C31+C32+C33 -> 3401 | D34: 0 | E34: 2558 | F34: 165 | G34: 0 | H34: 98 | I34: 0 | J34: -1696 | K34: 0 | L34: 4526 | M34: =M31+M32+M33 -> 0
A36: Забележка: На ред "Салдо в началото на отчетния период" се посочва салдото, което е в края на предходната година.
A38: Дата на съставяне: | B38: =pdeReportingDate -> 2017-04-24
A40: Съставител: | B40: =authorName -> Катинка Иванова Ангелова
A42: Представляващ/и:
B43: .....................................................
B44: /д-р Иван Василев Светулков/

Sheet Справка 5
A1: СПРАВКА ЗА ИНВЕСТИЦИИТЕ В ДЪЩЕРНИ, СМЕСЕНИ, АСОЦИИРАНИ И ДРУГИ ПРЕДПРИЯТИЯ
A3: =CONCATENATE("на ",UPPER(pdeName)) -> на "МБАЛ - ТЪРГОВИЩЕ" АД
A4: =CONCATENATE("ЕИК по БУЛСТАТ: ", pdeBulstat) -> ЕИК по БУЛСТАТ: 125501290
A5: =CONCATENATE("към ",TEXT(endDate,"dd.mm.yyyy")," г.") -> към 31.03.2017 г.
F7: (в хил.лева)
A8: Наименование и седалище на предприятията, в които са инвестициите | B8: Код на реда | C8: Размер на инвестицията | D8: Процент на инвестицията в капитала на другото предприятие | E8: Инвестиция в ценни книжа, приети за търговия на фондова борса | F8: Инвестиция в ценни книжа, неприети за търговия на фондова борса
A9: а | B9: б | C9: 1 | D9: 2 | E9: 3 | F9: 4
A10: А. В СТРАНАТА
A11: I. Инвестиции в дъщерни предприятия
A12: 1 | F12: =C12-E12 -> 0
A13: 2 | F13: =C13-E13 -> 0
A14: 3 | F14: 0
A15: 4 | F15: 0
A16: 5 | F16: 0
A17: 6 | F17: 0
A18: 7 | F18: 0
A19: 8 | F19: 0
A20: 9 | F20: 0
A21: 10 | F21: 0
A22: 11 | F22: 0
A23: 12 | F23: 0
A24: 13 | F24: 0
A25: 14 | F25: 0
A26: 15 | F26: 0
A27: Обща сума I: | B27: 8-4001 | C27: =SUM(C12:C26) -> 0 | E27: =SUM(E12:E26) -> 0 | F27: =SUM(F12:F26) -> 0
A28: II. Инвестиции в смесени предприятия
A29: 1 | F29: =C29-E29 -> 0
A30: 2 | F30: =C30-E30 -> 0
A31: 3 | F31: 0
A32: 4 | F32: 0
A33: 5 | F33: 0
A34: 6 | F34: 0
A35: 7 | F35: 0
A36: 8 | F36: 0
A37: 9 | F37: 0
A38: 10 | F38: 0
A39: 11 | F39: 0
A40: 12 | F40: 0
A41: 13 | F41: 0
A42: 14 | F42: 0
A43: 15 | F43: 0
A44: Обща сума II: | B44: 8-4006 | C44: =SUM(C29:C43) -> 0 | E44: =SUM(E29:E43) -> 0 | F44: =SUM(F29:F43) -> 0
A45: III. Инвестиции в асоциирани предприятия
A46: 1. ДКЦ "СВЕТИ ИВАН РИЛСКИ" ТЪРГОВИЩЕ | C46: 2 | F46: =C46-E46 -> 2
A47: 2 | F47: =C47-E47 -> 0
A48: 3 | F48: 0
A49: 4 | F49: 0
A50: 5 | F50: 0
A51: 6 | F51: 0
A52: 7 | F52: 0
A53: 8 | F53: 0
A54: 9 | F54: 0
A55: 10 | F55: 0
A56: 11 | F56: 0
A57: 12 | F57: 0
A58: 13 | F58: 0
A59: 14 | F59: 0
A60: 15 | F60: 0
A61: Обща сума III: | B61: 84011 | C61: =SUM(C46:C60) -> 2 | E61: =SUM(E46:E60) -> 0 | F61: =SUM(F46:F60) -> 2
A62: IV. Инвестиции в други предприятия
A63: 1 | F63: =C63-E63 -> 0
A64: 2 | F64: =C64-E64 -> 0
A65: 3 | F65: 0
A66: 4 | F66: 0
A67: 5 | F67: 0
A68: 6 | F68: 0
A69: 7 | F69: 0
A70: 8 | F70: 0
A71: 9 | F71: 0
A72: 10 | F72: 0
A73: 11 | F73: 0
A74: 12 | F74: 0
A75: 13 | F75: 0
A76: 14 | F76: 0
A77: 15 | F77: 0
A78: Обща сума IV: | B78: 8-4016 | C78: =SUM(C63:C77) -> 0 | E78: =SUM(E63:E77) -> 0 | F78: =SUM(F63:F77) -> 0
A79: Обща сума за страната (I+II+III+IV): | B79: 8-4025 | C79: =C78+C61+C44+C27 -> 2 | E79: =E78+E61+E44+E27 -> 0 | F79: =F78+F61+F44+F27 -> 2
A80: Б. В ЧУЖБИНА
A81: I. Инвестиции в дъщерни предприятия
A82: 1 | F82: =C82-E82 -> 0
A83: 2 | F83: =C83-E83 -> 0
A84: 3 | F84: 0
A85: 4 | F85: 0
A86: 5 | F86: 0
A87: 6 | F87: 0
A88: 7 | F88: 0
A89: 8 | F89: 0
A90: 9 | F90: 0
A91: 10 | F91: 0
A92: 11 | F92: 0
A93: 12 | F93: 0
A94: 13 | F94: 0
A95: 14 | F95: 0
A96: 15 | F96: 0
A97: Обща сума I: | B97: 8-4030 | C97: =SUM(C82:C96) -> 0 | E97: =SUM(E82:E96) -> 0 | F97: =SUM(F82:F96) -> 0
A98: II. Инвестиции в смесени предприятия
A99: 1 | F99: =C99-E99 -> 0
A100: 2 | F100: =C100-E100 -> 0
A101: 3 | F101: 0
A102: 4 | F102: 0
A103: 5 | F103: 0
A104: 6 | F104: 0
A105: 7 | F105: 0
A106: 8 | F106: 0
A107: 9 | F107: 0
A108: 10 | F108: 0
A109: 11 | F109: 0
A110: 12 | F110: 0
A111: 13 | F111: 0
A112: 14 | F112: 0
A113: 15 | F113: 0
A114: Обща сума II: | B114: 8-4035 | C114: =SUM(C99:C113) -> 0 | E114: =SUM(E99:E113) -> 0 | F114: =SUM(F99:F113) -> 0
A115: III. Инвестиции в асоциирани предприятия
A116: 1 | F116: =C116-E116 -> 0
A117: 2 | F117: =C117-E117 -> 0
A118: 3 | F118: 0
A119: 4 | F119: 0
A120: 5 | F120: 0
A121: 6 | F121: 0
A122: 7 | F122: 0
A123: 8 | F123: 0
A124: 9 | F124: 0
A125: 10 | F125: 0
A126: 11 | F126: 0
A127: 12 | F127: 0
A128: 13 | F128: 0
A129: 14 | F129: 0
A130: 15 | F130: 0
A131: Обща сума III: | B131: 8-4040 | C131: =SUM(C116:C130) -> 0 | E131: =SUM(E116:E130) -> 0 | F131: =SUM(F116:F130) -> 0
A132: IV. Инвестиции в други предприятия
A133: 1 | F133: =C133-E133 -> 0
A134: 2 | F134: =C134-E134 -> 0
A135: 3 | F135: 0
A136: 4 | F136: 0
A137: 5 | F137: 0
A138: 6 | F138: 0
A139: 7 | F139: 0
A140: 8 | F140: 0
A141: 9 | F141: 0
A142: 10 | F142: 0
A143: 11 | F143: 0
A144: 12 | F144: 0
A145: 13 | F145: 0
A146: 14 | F146: 0
A147: 15 | F147: 0
A148: Обща сума IV: | B148: 8-4045 | C148: =SUM(C133:C147) -> 0 | E148: =SUM(E133:E147) -> 0 | F148: =SUM(F133:F147) -> 0
A149: Обща сума за чужбина (I+II+III+IV): | B149: 8-4050 | C149: =C148+C131+C114+C97 -> 0 | E149: =E148+E131+E114+E97 -> 0 | F149: =F148+F131+F114+F97 -> 0
A151: Дата на съставяне: | B151: =pdeReportingDate -> 2017-04-24
A153: Съставител: | B153: =authorName -> Катинка Иванова Ангелова
A155: Представляващ/и:
B156: .........................
B157: /д-р Иван Василев Светулков/

Sheet Контроли (hidden)
A1: ФОРМАЛЕН КОНТРОЛ
A2: =CONCATENATE("на информацията, въведена в справките на ",UPPER(pdeName)) -> на информацията, въведена в справките на "МБАЛ - ТЪРГОВИЩЕ" АД
A3: =CONCATENATE("за периода от ",TEXT(startDate,"dd.mm.yyyy г.")," до ",TEXT(endDate,"dd.mm.yyyy г.")) -> за периода от 01.01.2017 г. до 31.03.2017 г.
A5: Справка 1 | B5: Показател 1 | C5: Стойност 1 | D5: РАЗЛИКА | E5: Стойност 2 | F5: Показател 2 | G5: Справка 2
A6: [1-Баланс] | B6: Общо активи | C6: ='1-Баланс'!C95 -> 9639 | D6: =C6-E6 -> 0 | E6: ='1-Баланс'!G95 -> 9639 | F6: Собствен капитал и пасиви | G6: [1-Баланс]
A7: [1-Баланс] | B7: Собствен капитал | C7: ='1-Баланс'!G37 -> 4526 | D7: 1125 | E7: ='1-Баланс'!G18 -> 3401 | F7: Основен капитал | G7: [1-Баланс]
A8: [1-Баланс] | B8: Текуща печалба/загуба | C8: =ABS('1-Баланс'!G32)-ABS('1-Баланс'!G33) -> -12 | D8: 0 | E8: =ABS('2-Отчет за доходите'!C44)-ABS('2-Отчет за доходите'!G44) -> -12 | F8: Нетна печалба/загуба за периода | G8: [2-ОД]
A9: [1-Баланс] | B9: Парични средства (предходен период) | C9: ='1-Баланс'!D92 -> 1125 | D9: 0 | E9: ='3-Отчет за паричния поток'!C45 -> 1125 | F9: Парични средства в началото на периода | G9: [3-ОПП]
A10: [1-Баланс] | B10: Парични средства (текущ период) | C10: ='1-Баланс'!C92 -> 1095 | D10: 0 | E10: ='3-Отчет за паричния поток'!C46 -> 1095 | F10: Парични средства в края на периода | G10: [3-ОПП]
A11: [1-Баланс] | B11: Собствен капитал | C11: ='1-Баланс'!G37 -> 4526 | D11: 0 | E11: ='4-Отчет за собствения капитал'!L34 -> 4526 | F11: Собствен капитал към края на отчетния период | G11: [4-ОСК]
A12: [1-Баланс] | B12: Нетекущи инвестиции в дъщерни предприятия | C12: ='1-Баланс'!C36 -> 0 | D12: 0 | E12: ='Справка 5'!C27+'Справка 5'!C97 -> 0 | F12: Инвестиции в дъщерни предприятия | G12: [Справка 5]
A13: [1-Баланс] | B13: Нетекущи инвестиции в смесени предприятия | C13: ='1-Баланс'!C37 -> 0 | D13: 0 | E13: ='Справка 5'!C44+'Справка 5'!C114 -> 0 | F13: Инвестиции в смесени предприятия | G13: [Справка 5]
A14: [1-Баланс] | B14: Нетекущи инвестиции в асоциирани предприятия | C14: ='1-Баланс'!C38 -> 2 | D14: 0 | E14: ='Справка 5'!C61+'Справка 5'!C131 -> 2 | F14: Инвестиции в асоциирани предприятия | G14: [Справка 5]
A15: [1-Баланс] | B15: Нетекущи инвестиции в други предприятия | C15: ='1-Баланс'!C39 -> 0 | D15: 0 | E15: ='Справка 5'!C148+'Справка 5'!C78 -> 0 | F15: Инвестиции в други предприятия | G15: [Справка 5]

Sheet Показатели (hidden)
A1: # | B1: Показател | C1: Коефициент | D1: Стойност
A2: Показатели за рентабилност
A3: 1 | B3: Рентабилност на приходите от продажби | C3: Финансов резултат / Нетни приходи от продажби | D3: =(ABS('1-Баланс'!G32)-ABS('1-Баланс'!G33))/'2-Отчет за доходите'!G16 -> -0.004
A4: 2 | B4: Рентабилност на собствения капитал (ROE) | C4: Финансов резултат / Собствен капитал | D4: =(ABS('1-Баланс'!G32)-ABS('1-Баланс'!G33))/'1-Баланс'!G37 -> -0.002651347768
A5: 3 | B5: Рентабилност на пасивите | C5: Финансов резултат / Пасиви | D5: =(ABS('1-Баланс'!G32)-ABS('1-Баланс'!G33))/('1-Баланс'!G56+'1-Баланс'!G79) -> -0.002346958733
A6: 4 | B6: Рентабилност на активите (ROA) | C6: Финансов резултат / Активи | D6: =(ABS('1-Баланс'!G32)-ABS('1-Баланс'!G33))/('1-Баланс'!C95) -> -0.001244942421
A7: Показатели за ефективност
A8: 5 | B8: Ефективност на разходите | C8: Приходи / Разходи | D8: ='2-Отчет за доходите'!G36/'2-Отчет за доходите'!C36 -> 0.9965357968
A9: Показатели за ликвидност
A10: 6 | B10: Обща ликвидност | C10: Текущи активи / Текущи пасиви | D10: ='1-Баланс'!C94/'1-Баланс'!G79 -> 0.5546645805
A11: 7 | B11: Бърза ликвидност | C11: (Краткосрочни вземания + Краткосрочни инвестиции + Парични средства) / Текущи пасиви | D11: =('1-Баланс'!C76+'1-Баланс'!C85+'1-Баланс'!C92)/'1-Баланс'!G79 -> 0.5235673773
A12: 8 | B12: Незабавна ликвидност | C12: (Краткосрочни инвестиции + Парични средства) / Текущи пасиви | D12: =('1-Баланс'!C85+'1-Баланс'!C92)/'1-Баланс'!G79 -> 0.2141599844
A13: 9 | B13: Абсолютна ликвидност | C13: Парични средства / Текущи пасиви | D13: ='1-Баланс'!C92/'1-Баланс'!G79 -> 0.2141599844
A14: Обръщаемост на активите
A15: 10 | B15: Обръщаемост на материалните активи | C15: Нетни приходи от продажби / Материални активи | D15: ='2-Отчет за доходите'!G16/('1-Баланс'!C20+'1-Баланс'!C21+'1-Баланс'!C22+'1-Баланс'!C28+'1-Баланс'!C65) -> 0.44411547
A16: 11 | B16: Обръщаемост на активите | C16: Нетни приходи от продажби / Общи активи | D16: ='2-Отчет за доходите'!G16/('1-Баланс'!C95) -> 0.3112356054
A17: Финансов ливъридж (Задлъжнялост)
A18: 12 | B18: Капиталова структура | C18: Дългосрочен дълг / Сума на дългосрочното финансиране | D18: ='1-Баланс'!G56/('1-Баланс'!G37+'1-Баланс'!G56) -> 0
A19: 13 | B19: Дълг / Собствен капитал | C19: Текущи пасиви + Нетекущи пасиви / Собствен капитал | D19: =D4/D5 -> 1.129695095
A20: 14 | B20: Дълг / Активи | C20: Текущи пасиви + Нетекущи пасиви / Активи | D20: =D6/D5 -> 0.5304492167
A21: 15 | B21: Оперативна печалба (EBIT) | C21: Печалба преди данъци + Р-ди за лихви | D21: ='2-Отчет за доходите'!C37+'2-Отчет за доходите'!C25 -> 0
A22: 16 | B22: Възвръщаемост на собствения капитал чрез оперативната печалба (ROE using EBIT) | C22: Оперативна печалба / Собствен капитал | D22: =D21/'1-Баланс'!G37 -> 0
A23: 17 | B23: EBITDA margin | C23: Оперативна печалба + Амортизации / Приходи от дейността | D23: =(D21+'2-Отчет за доходите'!C14)/'2-Отчет за доходите'!G31 -> 0.03186558517
A24: 18 | B24: Дълг / EBITDA | C24: Текущи пасиви + Нетекущи пасиви / EBITDA | D24: =('1-Баланс'!G56+'1-Баланс'!G79)/(D21+'2-Отчет за доходите'!C14) -> 46.48181818

Sheet Danni (hidden)
A1: Наименование | B1: ЕИК | C1: Дата | D1: Код на ред | E1: Код на колона | F1: Индикатор | G1: Подиндикатор | H1: Сума | N1: На консолидирана основа
F2: Баланс
A3: =pdeName -> "МБАЛ - ТЪРГОВИЩЕ" АД | B3: =pdeBulstat -> 125501290 | C3: =endDate -> 2017-03-31 | D3: 1-0011 | E3: 1 | F3: 1. Земи (терени ) | G3: Активи | H3: ='1-Баланс'!C12 -> 846
A4: "МБАЛ - ТЪРГОВИЩЕ" АД | B4: 125501290 | C4: 2017-03-31 | D4: 1-0012 | E4: 1 | F4: 2. Сгради и конструкции | G4: Активи | H4: ='1-Баланс'!C13 -> 3976
A5: "МБАЛ - ТЪРГОВИЩЕ" АД | B5: 125501290 | C5: 2017-03-31 | D5: 1-0013 | E5: 1 | F5: 3. Машини и оборудване | G5: Активи | H5: ='1-Баланс'!C14 -> 1329
A6: "МБАЛ - ТЪРГОВИЩЕ" АД | B6: 125501290 | C6: 2017-03-31 | D6: 1-0014 | E6: 1 | F6: 4. Съоръжения | G6: Активи | H6: ='1-Баланс'!C15 -> 310
A7: "МБАЛ - ТЪРГОВИЩЕ" АД | B7: 125501290 | C7: 2017-03-31 | D7: 1-0015 | E7: 1 | F7: 5. Транспортни средства | G7: Активи | H7: ='1-Баланс'!C16 -> 37
A8: "МБАЛ - ТЪРГОВИЩЕ" АД | B8: 125501290 | C8: 2017-03-31 | D8: 1-0017-1 | E8: 1 | F8: 6. Стопански инвентар | G8: Активи | H8: ='1-Баланс'!C17 -> 97
A9: "МБАЛ - ТЪРГОВИЩЕ" АД | B9: 125501290 | C9: 2017-03-31 | D9: 1-0018 | E9: 1 | F9: 7. Разходи за придобиване и ликвидация на дълготрайни материални активи | G9: Активи | H9: ='1-Баланс'!C18 -> 0
A10: "МБАЛ - ТЪРГОВИЩЕ" АД | B10: 125501290 | C10: 2017-03-31 | D10: 1-0017 | E10: 1 | F10: 8. Други | G10: Активи | H10: ='1-Баланс'!C19 -> 0
A11: "МБАЛ - ТЪРГОВИЩЕ" АД | B11: 125501290 | C11: 2017-03-31 | D11: 1-0010 | E11: 1 | F11: I. Имоти, машини, съоръжения и оборудване | G11: Активи | H11: ='1-Баланс'!C20 -> 6595
A12: "МБАЛ - ТЪРГОВИЩЕ" АД | B12: 125501290 | C12: 2017-03-31 | D12: 1-0041 | E12: 1 | F12: II. Инвестиционни имоти | G12: Активи | H12: ='1-Баланс'!C21 -> 0
A13: "МБАЛ - ТЪРГОВИЩЕ" АД | B13: 125501290 | C13: 2017-03-31 | D13: 1-0016 | E13: 1 | F13: III. Биологични активи | G13: Активи | H13: ='1-Баланс'!C22 -> 0
A14: "МБАЛ - ТЪРГОВИЩЕ" АД | B14: 125501290 | C14: 2017-03-31 | D14: 1-0021 | E14: 1 | F14: 1. Права върху собственост | G14: Активи | H14: ='1-Баланс'!C24 -> 0
A15: "МБАЛ - ТЪРГОВИЩЕ" АД | B15: 125501290 | C15: 2017-03-31 | D15: 1-0022 | E15: 1 | F15: 2. Програмни продукти | G15: Активи | H15: ='1-Баланс'!C25 -> 1
A16: "МБАЛ - ТЪРГОВИЩЕ" АД | B16: 125501290 | C16: 2017-03-31 | D16: 1-0023 | E16: 1 | F16: 3. Продукти от развойна дейност | G16: Активи | H16: ='1-Баланс'!C26 -> 0
A17: "МБАЛ - ТЪРГОВИЩЕ" АД | B17: 125501290 | C17: 2017-03-31 | D17: 1-0024 | E17: 1 | F17: 4. Други | G17: Активи | H17: ='1-Баланс'!C27 -> 0
A18: "МБАЛ - ТЪРГОВИЩЕ" АД | B18: 125501290 | C18: 2017-03-31 | D18: 1-0020 | E18: 1 | F18: IV. Нематериални активи | G18: Активи | H18: ='1-Баланс'!C28 -> 1
A19: "МБАЛ - ТЪРГОВИЩЕ" АД | B19: 125501290 | C19: 2017-03-31 | D19: 1-0051 | E19: 1 | F19: 1. Положителна репутация | G19: Активи | H19: ='1-Баланс'!C31 -> 0
A20: "МБАЛ - ТЪРГОВИЩЕ" АД | B20: 125501290 | C20: 2017-03-31 | D20: 1-0052 | E20: 1 | F20: 2. Отрицателна репутация | G20: Активи | H20: ='1-Баланс'!C32 -> 0
A21: "МБАЛ - ТЪРГОВИЩЕ" АД | B21: 125501290 | C21: 2017-03-31 | D21: 1-0050 | E21: 1 | F21: V. Търговска репутация | G21: Активи | H21: ='1-Баланс'!C33 -> 0
A22: "МБАЛ - ТЪРГОВИЩЕ" АД | B22: 125501290 | C22: 2017-03-31 | D22: 1-0031 | E22: 1 | F22: 1. Инвестиции в: | G22: Активи | H22: ='1-Баланс'!C35 -> 2
A23: "МБАЛ - ТЪРГОВИЩЕ" АД | B23: 125501290 | C23: 2017-03-31 | D23: 1-0032 | E23: 1 | F23: дъщерни предприятия | G23: Активи | H23: ='1-Баланс'!C36 -> 0
A24: "МБАЛ - ТЪРГОВИЩЕ" АД | B24: 125501290 | C24: 2017-03-31 | D24: 1-0033 | E24: 1 | F24: смесени предприятия | G24: Активи | H24: ='1-Баланс'!C37 -> 0
A25: "МБАЛ - ТЪРГОВИЩЕ" АД | B25: 125501290 | C25: 2017-03-31 | D25: 1-0034 | E25: 1 | F25: асоциирани предприятия | G25: Активи | H25: ='1-Баланс'!C38 -> 2
A26: "МБАЛ - ТЪРГОВИЩЕ" АД | B26: 125501290 | C26: 2017-03-31 | D26: 1-0035 | E26: 1 | F26: други предприятия | G26: Активи | H26: ='1-Баланс'!C39 -> 0
A27: "МБАЛ - ТЪРГОВИЩЕ" АД | B27: 125501290 | C27: 2017-03-31 | D27: 1-0042 | E27: 1 | F27: 2. Държани до настъпване на падеж | G27: Активи | H27: ='1-Баланс'!C40 -> 0
A28: "МБАЛ - ТЪРГОВИЩЕ" АД | B28: 125501290 | C28: 2017-03-31 | D28: 1-0042-1 | E28: 1 | F28: държавни ценни книжа | G28: Активи | H28: ='1-Баланс'!C41 -> 0
A29: "МБАЛ - ТЪРГОВИЩЕ" АД | B29: 125501290 | C29: 2017-03-31 | D29: 1-0042-2 | E29: 1 | F29: облигации, в т.ч.: | G29: Активи | H29: ='1-Баланс'!C42 -> 0
A30: "МБАЛ - ТЪРГОВИЩЕ" АД | B30: 125501290 | C30: 2017-03-31 | D30: 1-0042-3 | E30: 1 | F30: общински облигации | G30: Активи | H30: ='1-Баланс'!C43 -> 0
A31: "МБАЛ - ТЪРГОВИЩЕ" АД | B31: 125501290 | C31: 2017-03-31 | D31: 1-0042-4 | E31: 1 | F31: други инвестиции, държани до настъпване на падеж | G31: Активи | H31: ='1-Баланс'!C44 -> 0
A32: "МБАЛ - ТЪРГОВИЩЕ" АД | B32: 125501290 | C32: 2017-03-31 | D32: 1-0042-5 | E32: 1 | F32: 3. Други | G32: Активи | H32: ='1-Баланс'!C45 -> 0
A33: "МБАЛ - ТЪРГОВИЩЕ" АД | B33: 125501290 | C33: 2017-03-31 | D33: 1-0040 | E33: 1 | F33: Общо за група VI: | G33: Активи | H33: ='1-Баланс'!C46 -> 2
A34: "МБАЛ - ТЪРГОВИЩЕ" АД | B34: 125501290 | C34: 2017-03-31 | D34: 1-0044 | E34: 1 | F34: 1. Вземания от свързани предприятия | G34: Активи | H34: ='1-Баланс'!C48 -> 0
A35: =pdeName -> "МБАЛ - ТЪРГОВИЩЕ" АД | B35: =pdeBulstat -> 125501290 | C35: =endDate -> 2017-03-31 | D35: 1-0045 | E35: 1 | F35: 2. Вземания по търговски заеми | G35: Активи | H35: ='1-Баланс'!C49 -> 0
A36: "МБАЛ - ТЪРГОВИЩЕ" АД | B36: 125501290 | C36: 2017-03-31 | D36: 1-0046-1 | E36: 1 | F36: 3. Вземания по финансов лизинг | G36: Активи | H36: ='1-Баланс'!C50 -> 0
A37: "МБАЛ - ТЪРГОВИЩЕ" АД | B37: 125501290 | C37: 2017-03-31 | D37: 1-0046 | E37: 1 | F37: 4. Други | G37: Активи | H37: ='1-Баланс'!C51 -> 0
A38: "МБАЛ - ТЪРГОВИЩЕ" АД | B38: 125501290 | C38: 2017-03-31 | D38: 1-0040-1 | E38: 1 | F38: VI. Финансови активи | G38: Активи | H38: ='1-Баланс'!C52 -> 0
A39: "МБАЛ - ТЪРГОВИЩЕ" АД | B39: 125501290 | C39: 2017-03-31 | D39: 1-0060 | E39: 1 | F39: VIII. Разходи за бъдещи периоди | G39: Активи | H39: ='1-Баланс'!C54 -> 0
A40: "МБАЛ - ТЪРГОВИЩЕ" АД | B40: 125501290 | C40: 2017-03-31 | D40: 1-0060-1 | E40: 1 | F40: IX. Активи по отсрочени данъци | G40: Активи | H40: ='1-Баланс'!C55 -> 205
A41: "МБАЛ - ТЪРГОВИЩЕ" АД | B41: 125501290 | C41: 2017-03-31 | D41: 1-0100 | E41: 1 | F41: А. НЕТЕКУЩИ АКТИВИ | G41: Активи | H41: ='1-Баланс'!C56 -> 6803
A42: "МБАЛ - ТЪРГОВИЩЕ" АД | B42: 125501290 | C42: 2017-03-31 | D42: 1-0071 | E42: 1 | F42: 1. Материали | G42: Активи | H42: ='1-Баланс'!C59 -> 159
A43: "МБАЛ - ТЪРГОВИЩЕ" АД | B43: 125501290 | C43: 2017-03-31 | D43: 1-0072 | E43: 1 | F43: 2. Продукция | G43: Активи | H43: ='1-Баланс'!C60 -> 0
A44: "МБАЛ - ТЪРГОВИЩЕ" АД | B44: 125501290 | C44: 2017-03-31 | D44: 1-0073 | E44: 1 | F44: 3. Стоки | G44: Активи | H44: ='1-Баланс'!C61 -> 0
A45: "МБАЛ - ТЪРГОВИЩЕ" АД | B45: 125501290 | C45: 2017-03-31 | D45: 1-0076 | E45: 1 | F45: 4. Незавършено производство | G45: Активи | H45: ='1-Баланс'!C62 -> 0
A46: "МБАЛ - ТЪРГОВИЩЕ" АД | B46: 125501290 | C46: 2017-03-31 | D46: 1-0074 | E46: 1 | F46: 5. Биологични активи | G46: Активи | H46: ='1-Баланс'!C63 -> 0
A47: "МБАЛ - ТЪРГОВИЩЕ" АД | B47: 125501290 | C47: 2017-03-31 | D47: 1-0077 | E47: 1 | F47: 6. Други | G47: Активи | H47: ='1-Баланс'!C64 -> 0
A48: "МБАЛ - ТЪРГОВИЩЕ" АД | B48: 125501290 | C48: 2017-03-31 | D48: 1-0070 | E48: 1 | F48: I. Материални запаси | G48: Активи | H48: ='1-Баланс'!C65 -> 159
A49: "МБАЛ - ТЪРГОВИЩЕ" АД | B49: 125501290 | C49: 2017-03-31 | D49: 1-0081 | E49: 1 | F49: 1. Вземания от свързани предприятия | G49: Активи | H49: ='1-Баланс'!C68 -> 0
A50: "МБАЛ - ТЪРГОВИЩЕ" АД | B50: 125501290 | C50: 2017-03-31 | D50: 1-0082 | E50: 1 | F50: 2. Вземания от клиенти и доставчици | G50: Активи | H50: ='1-Баланс'!C69 -> 1577
A51: "МБАЛ - ТЪРГОВИЩЕ" АД | B51: 125501290 | C51: 2017-03-31 | D51: 1-0086-1 | E51: 1 | F51: 3. Предоставени аванси | G51: Активи | H51: ='1-Баланс'!C70 -> 0
A52: "МБАЛ - ТЪРГОВИЩЕ" АД | B52: 125501290 | C52: 2017-03-31 | D52: 1-0083 | E52: 1 | F52: 4. Вземания по предоставени търговски заеми | G52: Активи | H52: ='1-Баланс'!C71 -> 0
A53: "МБАЛ - ТЪРГОВИЩЕ" АД | B53: 125501290 | C53: 2017-03-31 | D53: 1-0084 | E53: 1 | F53: 5. Съдебни и присъдени вземания | G53: Активи | H53: ='1-Баланс'!C72 -> 0
A54: "МБАЛ - ТЪРГОВИЩЕ" АД | B54: 125501290 | C54: 2017-03-31 | D54: 1-0085 | E54: 1 | F54: 6. Данъци за възстановяване | G54: Активи | H54: ='1-Баланс'!C73 -> 0
A55: "МБАЛ - ТЪРГОВИЩЕ" АД | B55: 125501290 | C55: 2017-03-31 | D55: 1-0086-2 | E55: 1 | F55: 7. Вземания от персонала | G55: Активи | H55: ='1-Баланс'!C74 -> 0
A56: "МБАЛ - ТЪРГОВИЩЕ" АД | B56: 125501290 | C56: 2017-03-31 | D56: 1-0086 | E56: 1 | F56: 8. Други | G56: Активи | H56: ='1-Баланс'!C75 -> 5
A57: "МБАЛ - ТЪРГОВИЩЕ" АД | B57: 125501290 | C57: 2017-03-31 | D57: 1-0080 | E57: 1 | F57: II. Търговски и други вземания | G57: Активи | H57: ='1-Баланс'!C76 -> 1582
A58: "МБАЛ - ТЪРГОВИЩЕ" АД | B58: 125501290 | C58: 2017-03-31 | D58: 1-0093 | E58: 1 | F58: 1. Финансови активи, държани за търгуване в т. ч. | G58: Активи | H58: ='1-Баланс'!C79 -> 0
A59: "МБАЛ - ТЪРГОВИЩЕ" АД | B59: 125501290 | C59: 2017-03-31 | D59: 1-0093-1 | E59: 1 | F59: дългови ценни книжа | G59: Активи | H59: ='1-Баланс'!C80 -> 0
A60: "МБАЛ - ТЪРГОВИЩЕ" АД | B60: 125501290 | C60: 2017-03-31 | D60: 1-0093-2 | E60: 1 | F60: дeривативи | G60: Активи | H60: ='1-Баланс'!C81 -> 0
A61: "МБАЛ - ТЪРГОВИЩЕ" АД | B61: 125501290 | C61: 2017-03-31 | D61: 1-0093-3 | E61: 1 | F61: други | G61: Активи | H61: ='1-Баланс'!C82 -> 0
A62: "МБАЛ - ТЪРГОВИЩЕ" АД | B62: 125501290 | C62: 2017-03-31 | D62: 1-0093-4 | E62: 1 | F62: 2. Финансови активи, обявени за продажба | G62: Активи | H62: ='1-Баланс'!C83 -> 0
A63: "МБАЛ - ТЪРГОВИЩЕ" АД | B63: 125501290 | C63: 2017-03-31 | D63: 1-0095 | E63: 1 | F63: 3. Други | G63: Активи | H63: ='1-Баланс'!C84 -> 0
A64: "МБАЛ - ТЪРГОВИЩЕ" АД | B64: 125501290 | C64: 2017-03-31 | D64: 1-0090 | E64: 1 | F64: III.Финансови активи | G64: Активи | H64: ='1-Баланс'!C85 -> 0
A65: "МБАЛ - ТЪРГОВИЩЕ" АД | B65: 125501290 | C65: 2017-03-31 | D65: 1-0151 | E65: 1 | F65: 1. Парични средства в брой | G65: Активи | H65: ='1-Баланс'!C88 -> 8
A66: "МБАЛ - ТЪРГОВИЩЕ" АД | B66: 125501290 | C66: 2017-03-31 | D66: 1-0153 | E66: 1 | F66: 2. Парични средства в безсрочни депозити | G66: Активи | H66: ='1-Баланс'!C89 -> 1087
A67: =pdeName -> "МБАЛ - ТЪРГОВИЩЕ" АД | B67: =pdeBulstat -> 125501290 | C67: =endDate -> 2017-03-31 | D67: 1-0155 | E67: 1 | F67: 3. Блокирани парични средства | G67: Активи | H67: ='1-Баланс'!C90 -> 0
A68: "МБАЛ - ТЪРГОВИЩЕ" АД | B68: 125501290 | C68: 2017-03-31 | D68: 1-0157 | E68: 1 | F68: 4. Парични еквиваленти | G68: Активи | H68: ='1-Баланс'!C91 -> 0
A69: "МБАЛ - ТЪРГОВИЩЕ" АД | B69: 125501290 | C69: 2017-03-31 | D69: 1-0150 | E69: 1 | F69: IV. Парични средства и парични еквиваленти | G69: Активи | H69: ='1-Баланс'!C92 -> 1095
A70: "МБАЛ - ТЪРГОВИЩЕ" АД | B70: 125501290 | C70: 2017-03-31 | D70: 1-0160 | E70: 1 | F70: V. Разходи за бъдещи периоди | G70: Активи | H70: ='1-Баланс'!C93 -> 0
A71: "МБАЛ - ТЪРГОВИЩЕ" АД | B71: 125501290 | C71: 2017-03-31 | D71: 1-0200 | E71: 1 | F71: Б. ТЕКУЩИ АКТИВИ | G71: Активи | H71: ='1-Баланс'!C94 -> 2836
A72: "МБАЛ - ТЪРГОВИЩЕ" АД | B72: 125501290 | C72: 2017-03-31 | D72: 1-0300 | E72: 1 | F72: ОБЩО АКТИВИ (А + Б): | G72: Активи | H72: ='1-Баланс'!C95 -> 9639
A73: "МБАЛ - ТЪРГОВИЩЕ" АД | B73: 125501290 | C73: 2017-03-31 | D73: 1-0411 | E73: 1 | F73: Записан и внесен капитал т.ч.: | G73: Пасиви | H73: ='1-Баланс'!G12 -> 3401
A74: "МБАЛ - ТЪРГОВИЩЕ" АД | B74: 125501290 | C74: 2017-03-31 | D74: 1-0411-1 | E74: 1 | F74: обикновени акции | G74: Пасиви | H74: ='1-Баланс'!G13 -> 0
A75: "МБАЛ - ТЪРГОВИЩЕ" АД | B75: 125501290 | C75: 2017-03-31 | D75: 1-0411-2 | E75: 1 | F75: привилегировани акции | G75: Пасиви | H75: ='1-Баланс'!G14 -> 0
A76: "МБАЛ - ТЪРГОВИЩЕ" АД | B76: 125501290 | C76: 2017-03-31 | D76: 1-0417 | E76: 1 | F76: Изкупени собствени обикновени акции | G76: Пасиви | H76: ='1-Баланс'!G15 -> 0
A77: "МБАЛ - ТЪРГОВИЩЕ" АД | B77: 125501290 | C77: 2017-03-31 | D77: 1-0417-1 | E77: 1 | F77: Изкупени собствени привилегировани акции | G77: Пасиви | H77: ='1-Баланс'!G16 -> 0
A78: "МБАЛ - ТЪРГОВИЩЕ" АД | B78: 125501290 | C78: 2017-03-31 | D78: 1-0416 | E78: 1 | F78: Невнесен капитал | G78: Пасиви | H78: ='1-Баланс'!G17 -> 0
A79: "МБАЛ - ТЪРГОВИЩЕ" АД | B79: 125501290 | C79: 2017-03-31 | D79: 1-0410 | E79: 1 | F79: I. Основен капитал | G79: Пасиви | H79: ='1-Баланс'!G18 -> 3401
A80: "МБАЛ - ТЪРГОВИЩЕ" АД | B80: 125501290 | C80: 2017-03-31 | D80: 1-0421 | E80: 1 | F80: 1. Премийни резерви при емитиране на ценни книжа | G80: Пасиви | H80: ='1-Баланс'!G20 -> 0
A81: "МБАЛ - ТЪРГОВИЩЕ" АД | B81: 125501290 | C81: 2017-03-31 | D81: 1-0422 | E81: 1 | F81: 2. Резерв от последващи оценки на активите и пасивите | G81: Пасиви | H81: ='1-Баланс'!G21 -> 2558
A82: "МБАЛ - ТЪРГОВИЩЕ" АД | B82: 125501290 | C82: 2017-03-31 | D82: 1-0423 | E82: 1 | F82: 3. Целеви резерви, в т.ч.: | G82: Пасиви | H82: ='1-Баланс'!G22 -> 263
A83: "МБАЛ - ТЪРГОВИЩЕ" АД | B83: 125501290 | C83: 2017-03-31 | D83: 1-0424 | E83: 1 | F83: общи резерви | G83: Пасиви | H83: ='1-Баланс'!G23 -> 165
A84: "МБАЛ - ТЪРГОВИЩЕ" АД | B84: 125501290 | C84: 2017-03-31 | D84: 1-0425 | E84: 1 | F84: специализирани резерви | G84: Пасиви | H84: ='1-Баланс'!G24 -> 0
A85: "МБАЛ - ТЪРГОВИЩЕ" АД | B85: 125501290 | C85: 2017-03-31 | D85: 1-0426 | E85: 1 | F85: други резерви | G85: Пасиви | H85: ='1-Баланс'!G25 -> 98
A86: "МБАЛ - ТЪРГОВИЩЕ" АД | B86: 125501290 | C86: 2017-03-31 | D86: 1-0420 | E86: 1 | F86: II. Резерви | G86: Пасиви | H86: ='1-Баланс'!G26 -> 2821
A87: "МБАЛ - ТЪРГОВИЩЕ" АД | B87: 125501290 | C87: 2017-03-31 | D87: 1-0451 | E87: 1 | F87: 1. Натрупана печалба (загуба) в т.ч.: | G87: Пасиви | H87: ='1-Баланс'!G28 -> -1684
A88: "МБАЛ - ТЪРГОВИЩЕ" АД | B88: 125501290 | C88: 2017-03-31 | D88: 1-0452 | E88: 1 | F88: неразпределена печалба | G88: Пасиви | H88: ='1-Баланс'!G29 -> 0
A89: "МБАЛ - ТЪРГОВИЩЕ" АД | B89: 125501290 | C89: 2017-03-31 | D89: 1-0453 | E89: 1 | F89: непокрита загуба | G89: Пасиви | H89: ='1-Баланс'!G30 -> -1684
A90: "МБАЛ - ТЪРГОВИЩЕ" АД | B90: 125501290 | C90: 2017-03-31 | D90: 1-0451-1 | E90: 1 | F90: еднократен ефект от промени в счетоводната политика | G90: Пасиви | H90: ='1-Баланс'!G31 -> 0
A91: "МБАЛ - ТЪРГОВИЩЕ" АД | B91: 125501290 | C91: 2017-03-31 | D91: 1-0454 | E91: 1 | F91: 2. Текуща печалба | G91: Пасиви | H91: ='1-Баланс'!G32 -> 0
A92: "МБАЛ - ТЪРГОВИЩЕ" АД | B92: 125501290 | C92: 2017-03-31 | D92: 1-0455 | E92: 1 | F92: 3. Текуща загуба | G92: Пасиви | H92: ='1-Баланс'!G33 -> -12
A93: "МБАЛ - ТЪРГОВИЩЕ" АД | B93: 125501290 | C93: 2017-03-31 | D93: 1-0450 | E93: 1 | F93: III. Финансов резултат | G93: Пасиви | H93: ='1-Баланс'!G34 -> -1696
A94: "МБАЛ - ТЪРГОВИЩЕ" АД | B94: 125501290 | C94: 2017-03-31 | D94: 1-0400 | E94: 1 | F94: А. СОБСТВЕН КАПИТАЛ | G94: Пасиви | H94: ='1-Баланс'!G37 -> 4526
A95: "МБАЛ - ТЪРГОВИЩЕ" АД | B95: 125501290 | C95: 2017-03-31 | D95: 1-0400-1 | E95: 1 | F95: Б. МАЛЦИНСТВЕНО УЧАСТИЕ | G95: Пасиви | H95: ='1-Баланс'!G40 -> 0
A96: "МБАЛ - ТЪРГОВИЩЕ" АД | B96: 125501290 | C96: 2017-03-31 | D96: 1-0511 | E96: 1 | F96: 1. Задължения към свързани предприятия | G96: Пасиви | H96: ='1-Баланс'!G44 -> 0
A97: "МБАЛ - ТЪРГОВИЩЕ" АД | B97: 125501290 | C97: 2017-03-31 | D97: 1-0512 | E97: 1 | F97: 2.Задължения по получени заеми от банки и небанкови финансови институции | G97: Пасиви | H97: ='1-Баланс'!G45 -> 0
A98: "МБАЛ - ТЪРГОВИЩЕ" АД | B98: 125501290 | C98: 2017-03-31 | D98: 1-0512-1 | E98: 1 | F98: 3. Задължения по ЗУНК | G98: Пасиви | H98: ='1-Баланс'!G46 -> 0
A99: =pdeName -> "МБАЛ - ТЪРГОВИЩЕ" АД | B99: =pdeBulstat -> 125501290 | C99: =endDate -> 2017-03-31 | D99: 1-0514 | E99: 1 | F99: 4. Задължения по получени търговски заеми | G99: Пасиви | H99: ='1-Баланс'!G47 -> 0
A100: "МБАЛ - ТЪРГОВИЩЕ" АД | B100: 125501290 | C100: 2017-03-31 | D100: 1-0515 | E100: 1 | F100: 5. Задължения по облигационни заеми | G100: Пасиви | H100: ='1-Баланс'!G48 -> 0
A101: "МБАЛ - ТЪРГОВИЩЕ" АД | B101: 125501290 | C101: 2017-03-31 | D101: 1-0517 | E101: 1 | F101: 6. Други | G101: Пасиви | H101: ='1-Баланс'!G49 -> 0
A102: "МБАЛ - ТЪРГОВИЩЕ" АД | B102: 125501290 | C102: 2017-03-31 | D102: 1-0510 | E102: 1 | F102: I. Търговски и други задължения | G102: Пасиви | H102: ='1-Баланс'!G50 -> 0
A103: "МБАЛ - ТЪРГОВИЩЕ" АД | B103: 125501290 | C103: 2017-03-31 | D103: 1-0510-1 | E103: 1 | F103: II. Други нетекущи пасиви | G103: Пасиви | H103: ='1-Баланс'!G52 -> 0
A104: "МБАЛ - ТЪРГОВИЩЕ" АД | B104: 125501290 | C104: 2017-03-31 | D104: 1-0520 | E104: 1 | F104: III. Приходи за бъдещи периоди | G104: Пасиви | H104: ='1-Баланс'!G53 -> 0
A105: "МБАЛ - ТЪРГОВИЩЕ" АД | B105: 125501290 | C105: 2017-03-31 | D105: 1-0516 | E105: 1 | F105: IV. Пасиви по отсрочени данъци | G105: Пасиви | H105: ='1-Баланс'!G54 -> 0
A106: "МБАЛ - ТЪРГОВИЩЕ" АД | B106: 125501290 | C106: 2017-03-31 | D106: 1-0520-1 | E106: 1 | F106: V.Финансирания | G106: Пасиви | H106: ='1-Баланс'!G55 -> 0
A107: "МБАЛ - ТЪРГОВИЩЕ" АД | B107: 125501290 | C107: 2017-03-31 | D107: 1-0500 | E107: 1 | F107: В. НЕТЕКУЩИ ПАСИВИ | G107: Пасиви | H107: ='1-Баланс'!G56 -> 0
A108: "МБАЛ - ТЪРГОВИЩЕ" АД | B108: 125501290 | C108: 2017-03-31 | D108: 1-0612 | E108: 1 | F108: 1. Задължения по получени заеми към банки и небанкови финансови институции | G108: Пасиви | H108: ='1-Баланс'!G59 -> 0
A109: "МБАЛ - ТЪРГОВИЩЕ" АД | B109: 125501290 | C109: 2017-03-31 | D109: 1-0510-2 | E109: 1 | F109: 2. Текуща част от нетекущите задължения | G109: Пасиви | H109: ='1-Баланс'!G60 -> 0
A110: "МБАЛ - ТЪРГОВИЩЕ" АД | B110: 125501290 | C110: 2017-03-31 | D110: 1-0630 | E110: 1 | F110: 3. Текущи задължения, в т.ч.: | G110: Пасиви | H110: ='1-Баланс'!G61 -> 3484
A111: "МБАЛ - ТЪРГОВИЩЕ" АД | B111: 125501290 | C111: 2017-03-31 | D111: 1-0611 | E111: 1 | F111: задължения към свързани предприятия | G111: Пасиви | H111: ='1-Баланс'!G62 -> 0
A112: "МБАЛ - ТЪРГОВИЩЕ" АД | B112: 125501290 | C112: 2017-03-31 | D112: 1-0614 | E112: 1 | F112: задължения по получени търговски заеми | G112: Пасиви | H112: ='1-Баланс'!G63 -> 0
A113: "МБАЛ - ТЪРГОВИЩЕ" АД | B113: 125501290 | C113: 2017-03-31 | D113: 1-0613 | E113: 1 | F113: задължения към доставчици и клиенти | G113: Пасиви | H113: ='1-Баланс'!G64 -> 2570
A114: "МБАЛ - ТЪРГОВИЩЕ" АД | B114: 125501290 | C114: 2017-03-31 | D114: 1-0613-1 | E114: 1 | F114: получени аванси | G114: Пасиви | H114: ='1-Баланс'!G65 -> 0
A115: "МБАЛ - ТЪРГОВИЩЕ" АД | B115: 125501290 | C115: 2017-03-31 | D115: 1-0615 | E115: 1 | F115: задължения към персонала | G115: Пасиви | H115: ='1-Баланс'!G66 -> 619
A116: "МБАЛ - ТЪРГОВИЩЕ" АД | B116: 125501290 | C116: 2017-03-31 | D116: 1-0616 | E116: 1 | F116: задължения към осигурителни предприятия | G116: Пасиви | H116: ='1-Баланс'!G67 -> 245
A117: "МБАЛ - ТЪРГОВИЩЕ" АД | B117: 125501290 | C117: 2017-03-31 | D117: 1-0617 | E117: 1 | F117: данъчни задължения | G117: Пасиви | H117: ='1-Баланс'!G68 -> 50
A118: "МБАЛ - ТЪРГОВИЩЕ" АД | B118: 125501290 | C118: 2017-03-31 | D118: 1-0618 | E118: 1 | F118: 4. Други | G118: Пасиви | H118: ='1-Баланс'!G69 -> 106
A119: "МБАЛ - ТЪРГОВИЩЕ" АД | B119: 125501290 | C119: 2017-03-31 | D119: 1-0619 | E119: 1 | F119: 5. Провизии | G119: Пасиви | H119: ='1-Баланс'!G70 -> 0
A120: "МБАЛ - ТЪРГОВИЩЕ" АД | B120: 125501290 | C120: 2017-03-31 | D120: 1-0610 | E120: 1 | F120: I. Търговски и други задължения | G120: Пасиви | H120: ='1-Баланс'!G71 -> 3590
A121: "МБАЛ - ТЪРГОВИЩЕ" АД | B121: 125501290 | C121: 2017-03-31 | D121: 1-0610-1 | E121: 1 | F121: II. Други текущи пасиви | G121: Пасиви | H121: ='1-Баланс'!G73 -> 0
A122: "МБАЛ - ТЪРГОВИЩЕ" АД | B122: 125501290 | C122: 2017-03-31 | D122: 1-0700 | E122: 1 | F122: III. Приходи за бъдещи периоди | G122: Пасиви | H122: ='1-Баланс'!G75 -> 1000
A123: "МБАЛ - ТЪРГОВИЩЕ" АД | B123: 125501290 | C123: 2017-03-31 | D123: 1-0700-1 | E123: 1 | F123: IV. Финансирания | G123: Пасиви | H123: ='1-Баланс'!G77 -> 523
A124: "МБАЛ - ТЪРГОВИЩЕ" АД | B124: 125501290 | C124: 2017-03-31 | D124: 1-0750 | E124: 1 | F124: Г. ТЕКУЩИ ПАСИВИ | G124: Пасиви | H124: ='1-Баланс'!G79 -> 5113
A125: "МБАЛ - ТЪРГОВИЩЕ" АД | B125: 125501290 | C125: 2017-03-31 | D125: 1-0800 | E125: 1 | F125: СОБСТВЕН КАТИТАЛ, МАЛЦИНСТВЕНО УЧАСТИЕ И ПАСИВИ (А+Б+В+Г): | G125: Пасиви | H125: ='1-Баланс'!G95 -> 9639
F126: ОПР
A127: =pdeName -> "МБАЛ - ТЪРГОВИЩЕ" АД | B127: =pdeBulstat -> 125501290 | C127: =endDate -> 2017-03-31 | D127: 2-1120 | E127: 1 | F127: 1. Разходи за материали | G127: Разходи | H127: ='2-Отчет за доходите'!C12 -> 1227
A128: "МБАЛ - ТЪРГОВИЩЕ" АД | B128: 125501290 | C128: 2017-03-31 | D128: 2-1130 | E128: 1 | F128: 2. Разходи за външни услуги | G128: Разходи | H128: ='2-Отчет за доходите'!C13 -> 167
A129: "МБАЛ - ТЪРГОВИЩЕ" АД | B129: 125501290 | C129: 2017-03-31 | D129: 2-1160 | E129: 1 | F129: 3. Разходи за амортизации | G129: Разходи | H129: ='2-Отчет за доходите'!C14 -> 110
A130: "МБАЛ - ТЪРГОВИЩЕ" АД | B130: 125501290 | C130: 2017-03-31 | D130: 2-1140 | E130: 1 | F130: 4. Разходи за възнаграждения | G130: Разходи | H130: ='2-Отчет за доходите'!C15 -> 1638
A131: "МБАЛ - ТЪРГОВИЩЕ" АД | B131: 125501290 | C131: 2017-03-31 | D131: 2-1150 | E131: 1 | F131: 5. Разходи за осигуровки | G131: Разходи | H131: ='2-Отчет за доходите'!C16 -> 307
A132: "МБАЛ - ТЪРГОВИЩЕ" АД | B132: 125501290 | C132: 2017-03-31 | D132: 2-1010 | E132: 1 | F132: 6. Балансова стойност на продадени активи (без продукция) | G132: Разходи | H132: ='2-Отчет за доходите'!C17 -> 0
A133: "МБАЛ - ТЪРГОВИЩЕ" АД | B133: 125501290 | C133: 2017-03-31 | D133: 2-1030 | E133: 1 | F133: 7. Изменение на запасите от продукция и незавършено производство | G133: Разходи | H133: ='2-Отчет за доходите'!C18 -> 0
A134: "МБАЛ - ТЪРГОВИЩЕ" АД | B134: 125501290 | C134: 2017-03-31 | D134: 2-1170 | E134: 1 | F134: 8. Други, в т.ч.: | G134: Разходи | H134: ='2-Отчет за доходите'!C19 -> 14
A135: "МБАЛ - ТЪРГОВИЩЕ" АД | B135: 125501290 | C135: 2017-03-31 | D135: 2-1171 | E135: 1 | F135: обезценка на активи | G135: Разходи | H135: ='2-Отчет за доходите'!C20 -> 0
A136: "МБАЛ - ТЪРГОВИЩЕ" АД | B136: 125501290 | C136: 2017-03-31 | D136: 2-1172 | E136: 1 | F136: провизии | G136: Разходи | H136: ='2-Отчет за доходите'!C21 -> 0
A137: "МБАЛ - ТЪРГОВИЩЕ" АД | B137: 125501290 | C137: 2017-03-31 | D137: 2-1100 | E137: 1 | F137: I. Разходи по икономически елементи | G137: Разходи | H137: ='2-Отчет за доходите'!C22 -> 3463
A138: "МБАЛ - ТЪРГОВИЩЕ" АД | B138: 125501290 | C138: 2017-03-31 | D138: 2-1210 | E138: 1 | F138: 1. Разходи за лихви | G138: Разходи | H138: ='2-Отчет за доходите'!C25 -> 0
A139: "МБАЛ - ТЪРГОВИЩЕ" АД | B139: 125501290 | C139: 2017-03-31 | D139: 2-1220 | E139: 1 | F139: 2. Отрицателни разлики от операции с финансови активи и инструменти | G139: Разходи | H139: ='2-Отчет за доходите'!C26 -> 0
A140: "МБАЛ - ТЪРГОВИЩЕ" АД | B140: 125501290 | C140: 2017-03-31 | D140: 2-1230 | E140: 1 | F140: 3. Отрицателни разлики от промяна на валутни курсове | G140: Разходи | H140: ='2-Отчет за доходите'!C27 -> 0
A141: "МБАЛ - ТЪРГОВИЩЕ" АД | B141: 125501290 | C141: 2017-03-31 | D141: 2-1240 | E141: 1 | F141: 4. Други | G141: Разходи | H141: ='2-Отчет за доходите'!C28 -> 1
A142: "МБАЛ - ТЪРГОВИЩЕ" АД | B142: 125501290 | C142: 2017-03-31 | D142: 2-1200 | E142: 1 | F142: II. Финансови разходи | G142: Разходи | H142: ='2-Отчет за доходите'!C29 -> 1
A143: "МБАЛ - ТЪРГОВИЩЕ" АД | B143: 125501290 | C143: 2017-03-31 | D143: 2-1300 | E143: 1 | F143: Б. Общо разходи за дейността (I + II) | G143: Разходи | H143: ='2-Отчет за доходите'!C31 -> 3464
A144: "МБАЛ - ТЪРГОВИЩЕ" АД | B144: 125501290 | C144: 2017-03-31 | D144: 2-1310 | E144: 1 | F144: В. Печалба от дейността | G144: Разходи | H144: ='2-Отчет за доходите'!C33 -> 0
A145: "МБАЛ - ТЪРГОВИЩЕ" АД | B145: 125501290 | C145: 2017-03-31 | D145: 2-1250-1 | E145: 1 | F145: III. Дял от печалбата на асоциирани и съвместни предприятия | G145: Разходи | H145: ='2-Отчет за доходите'!C34 -> 0
A146: "МБАЛ - ТЪРГОВИЩЕ" АД | B146: 125501290 | C146: 2017-03-31 | D146: 2-1250 | E146: 1 | F146: IV. Извънредни разходи | G146: Разходи | H146: ='2-Отчет за доходите'!C35 -> 0
A147: "МБАЛ - ТЪРГОВИЩЕ" АД | B147: 125501290 | C147: 2017-03-31 | D147: 2-1350 | E147: 1 | F147: Г. Общо разходи (Б+ III +IV) | G147: Разходи | H147: ='2-Отчет за доходите'!C36 -> 3464
A148: "МБАЛ - ТЪРГОВИЩЕ" АД | B148: 125501290 | C148: 2017-03-31 | D148: 2-1400 | E148: 1 | F148: Д. Печалба преди облагане с данъци | G148: Разходи | H148: ='2-Отчет за доходите'!C37 -> 0
A149: "МБАЛ - ТЪРГОВИЩЕ" АД | B149: 125501290 | C149: 2017-03-31 | D149: 2-1450 | E149: 1 | F149: V. Разходи за данъци | G149: Разходи | H149: ='2-Отчет за доходите'!C38 -> 0
A150: "МБАЛ - ТЪРГОВИЩЕ" АД | B150: 125501290 | C150: 2017-03-31 | D150: 2-1451 | E150: 1 | F150: 1.Разходи за текущи корпоративни данъци върху печалбата | G150: Разходи | H150: ='2-Отчет за доходите'!C39 -> 0
A151: "МБАЛ - ТЪРГОВИЩЕ" АД | B151: 125501290 | C151: 2017-03-31 | D151: 2-1452 | E151: 1 | F151: 2. Разход /(икономия) на отсрочени корпоративни данъци върху печалбата | G151: Разходи | H151: ='2-Отчет за доходите'!C40 -> 0
A152: "МБАЛ - ТЪРГОВИЩЕ" АД | B152: 125501290 | C152: 2017-03-31 | D152: 2-1453 | E152: 1 | F152: 3. Други | G152: Разходи | H152: ='2-Отчет за доходите'!C41 -> 0
A153: "МБАЛ - ТЪРГОВИЩЕ" АД | B153: 125501290 | C153: 2017-03-31 | D153: 2-0454 | E153: 1 | F153: E. Печалба след облагане с данъци (Д - V) | G153: Разходи | H153: ='2-Отчет за доходите'!C42 -> 0
A154: "МБАЛ - ТЪРГОВИЩЕ" АД | B154: 125501290 | C154: 2017-03-31 | D154: 2-0454-1 | E154: 1 | F154: в т.ч. за малцинствено участие | G154: Разходи | H154: ='2-Отчет за доходите'!C43 -> 0
A155: "МБАЛ - ТЪРГОВИЩЕ" АД | B155: 125501290 | C155: 2017-03-31 | D155: 2-0454-2 | E155: 1 | F155: Ж. Нетна печалба за периода | G155: Разходи | H155: ='2-Отчет за доходите'!C44 -> 0
A156: "МБАЛ - ТЪРГОВИЩЕ" АД | B156: 125501290 | C156: 2017-03-31 | D156: 2-1500 | E156: 1 | F156: Всичко (Г+ V + Е): | G156: Разходи | H156: ='2-Отчет за доходите'!C45 -> 3464
A157: "МБАЛ - ТЪРГОВИЩЕ" АД | B157: 125501290 | C157: 2017-03-31 | D157: 2-1551 | E157: 1 | F157: 1. Продукция | G157: Приходи | H157: ='2-Отчет за доходите'!G12 -> 5
A158: "МБАЛ - ТЪРГОВИЩЕ" АД | B158: 125501290 | C158: 2017-03-31 | D158: 2-1552 | E158: 1 | F158: 2. Стоки | G158: Приходи | H158: ='2-Отчет за доходите'!G13 -> 0
A159: =pdeName -> "МБАЛ - ТЪРГОВИЩЕ" АД | B159: =pdeBulstat -> 125501290 | C159: =endDate -> 2017-03-31 | D159: 2-1560 | E159: 1 | F159: 3. Услуги | G159: Приходи | H159: ='2-Отчет за доходите'!G14 -> 2995
A160: "МБАЛ - ТЪРГОВИЩЕ" АД | B160: 125501290 | C160: 2017-03-31 | D160: 2-1556 | E160: 1 | F160: 4. Други | G160: Приходи | H160: ='2-Отчет за доходите'!G15 -> 0
A161: "МБАЛ - ТЪРГОВИЩЕ" АД | B161: 125501290 | C161: 2017-03-31 | D161: 2-1610 | E161: 1 | F161: I. Нетни приходи от продажби на: | G161: Приходи | H161: ='2-Отчет за доходите'!G16 -> 3000
A162: "МБАЛ - ТЪРГОВИЩЕ" АД | B162: 125501290 | C162: 2017-03-31 | D162: 2-1620 | E162: 1 | F162: II. Приходи от финансирания | G162: Приходи | H162: ='2-Отчет за доходите'!G18 -> 452
A163: "МБАЛ - ТЪРГОВИЩЕ" АД | B163: 125501290 | C163: 2017-03-31 | D163: 2-1621 | E163: 1 | F163: в т.ч. от правителството | G163: Приходи | H163: ='2-Отчет за доходите'!G19 -> 398
A164: "МБАЛ - ТЪРГОВИЩЕ" АД | B164: 125501290 | C164: 2017-03-31 | D164: 2-1710 | E164: 1 | F164: 1. Приходи от лихви | G164: Приходи | H164: ='2-Отчет за доходите'!G22 -> 0
A165: "МБАЛ - ТЪРГОВИЩЕ" АД | B165: 125501290 | C165: 2017-03-31 | D165: 2-1721 | E165: 1 | F165: 2. Приходи от дивиденти | G165: Приходи | H165: ='2-Отчет за доходите'!G23 -> 0
A166: "МБАЛ - ТЪРГОВИЩЕ" АД | B166: 125501290 | C166: 2017-03-31 | D166: 2-1730 | E166: 1 | F166: 3. Положителни разлики от операции с финансови активи и инструменти | G166: Приходи | H166: ='2-Отчет за доходите'!G24 -> 0
A167: "МБАЛ - ТЪРГОВИЩЕ" АД | B167: 125501290 | C167: 2017-03-31 | D167: 2-1740 | E167: 1 | F167: 4. Положителни разлики от промяна на валутни курсове | G167: Приходи | H167: ='2-Отчет за доходите'!G25 -> 0
A168: "МБАЛ - ТЪРГОВИЩЕ" АД | B168: 125501290 | C168: 2017-03-31 | D168: 2-1745 | E168: 1 | F168: 5. Други | G168: Приходи | H168: ='2-Отчет за доходите'!G26 -> 0
A169: "МБАЛ - ТЪРГОВИЩЕ" АД | B169: 125501290 | C169: 2017-03-31 | D169: 2-1700 | E169: 1 | F169: III. Финансови приходи | G169: Приходи | H169: ='2-Отчет за доходите'!G27 -> 0
A170: "МБАЛ - ТЪРГОВИЩЕ" АД | B170: 125501290 | C170: 2017-03-31 | D170: 2-1600 | E170: 1 | F170: Б. Общо приходи от дейността (I + II + III): | G170: Приходи | H170: ='2-Отчет за доходите'!G31 -> 3452
A171: "МБАЛ - ТЪРГОВИЩЕ" АД | B171: 125501290 | C171: 2017-03-31 | D171: 2-1810 | E171: 1 | F171: В. Загуба от дейността | G171: Приходи | H171: ='2-Отчет за доходите'!G33 -> 12
A172: "МБАЛ - ТЪРГОВИЩЕ" АД | B172: 125501290 | C172: 2017-03-31 | D172: 2-1810-1 | E172: 1 | F172: IV. Дял от загубата на асоциирани и съвместни предприятия | G172: Приходи | H172: ='2-Отчет за доходите'!G34 -> 0
A173: "МБАЛ - ТЪРГОВИЩЕ" АД | B173: 125501290 | C173: 2017-03-31 | D173: 2-1750 | E173: 1 | F173: V. Извънредни приходи | G173: Приходи | H173: ='2-Отчет за доходите'!G35 -> 0
A174: "МБАЛ - ТЪРГОВИЩЕ" АД | B174: 125501290 | C174: 2017-03-31 | D174: 2-1800 | E174: 1 | F174: Г. Общо приходи (Б + IV + V) | G174: Приходи | H174: ='2-Отчет за доходите'!G36 -> 3452
A175: "МБАЛ - ТЪРГОВИЩЕ" АД | B175: 125501290 | C175: 2017-03-31 | D175: 2-1850 | E175: 1 | F175: Д. Загуба преди облагане с данъци | G175: Приходи | H175: ='2-Отчет за доходите'!G37 -> 12
A176: "МБАЛ - ТЪРГОВИЩЕ" АД | B176: 125501290 | C176: 2017-03-31 | D176: 2-0455 | E176: 1 | F176: E. Загуба след облагане с данъци (Д + V) | G176: Приходи | H176: ='2-Отчет за доходите'!G42 -> 12
A177: "МБАЛ - ТЪРГОВИЩЕ" АД | B177: 125501290 | C177: 2017-03-31 | D177: 2-0455-1 | E177: 1 | F177: в т.ч. за малцинствено участие | G177: Приходи | H177: ='2-Отчет за доходите'!G43 -> 0
A178: "МБАЛ - ТЪРГОВИЩЕ" АД | B178: 125501290 | C178: 2017-03-31 | D178: 2-0455-2 | E178: 1 | F178: Ж. Нетна загуба за периода | G178: Приходи | H178: ='2-Отчет за доходите'!G44 -> 12
A179: "МБАЛ - ТЪРГОВИЩЕ" АД | B179: 125501290 | C179: 2017-03-31 | D179: 2-1900 | E179: 1 | F179: Всичко (Г + E): | G179: Приходи | H179: ='2-Отчет за доходите'!G45 -> 3464
F180: ОПП
A181: =pdeName -> "МБАЛ - ТЪРГОВИЩЕ" АД | B181: =pdeBulstat -> 125501290 | C181: =endDate -> 2017-03-31 | D181: 3-2201 | E181: 1 | F181: 1. Постъпления от клиенти | G181: ПП от оперативна дейност | H181: ='3-Отчет за паричния поток'!C11 -> 3272
A182: "МБАЛ - ТЪРГОВИЩЕ" АД | B182: 125501290 | C182: 2017-03-31 | D182: 3-2201-1 | E182: 1 | F182: 2. Плащания на доставчици | G182: ПП от оперативна дейност | H182: ='3-Отчет за паричния поток'!C12 -> -1431
A183: "МБАЛ - ТЪРГОВИЩЕ" АД | B183: 125501290 | C183: 2017-03-31 | D183: 3-2202 | E183: 1 | F183: 3. Плащания/постъпления, свързани с финансови активи, държани с цел търговия | G183: ПП от оперативна дейност | H183: ='3-Отчет за паричния поток'!C13 -> 0
A184: "МБАЛ - ТЪРГОВИЩЕ" АД | B184: 125501290 | C184: 2017-03-31 | D184: 3-2203 | E184: 1 | F184: 4. Плащания, свързани с възнаграждения | G184: ПП от оперативна дейност | H184: ='3-Отчет за паричния поток'!C14 -> -1929
A185: "МБАЛ - ТЪРГОВИЩЕ" АД | B185: 125501290 | C185: 2017-03-31 | D185: 3-2206 | E185: 1 | F185: 5. Платени /възстановени данъци (без корпоративен данък върху печалбата) | G185: ПП от оперативна дейност | H185: ='3-Отчет за паричния поток'!C15 -> 0
A186: "МБАЛ - ТЪРГОВИЩЕ" АД | B186: 125501290 | C186: 2017-03-31 | D186: 3-2206-1 | E186: 1 | F186: 6. Платени корпоративни данъци върху печалбата | G186: ПП от оперативна дейност | H186: ='3-Отчет за паричния поток'!C16 -> 0
A187: "МБАЛ - ТЪРГОВИЩЕ" АД | B187: 125501290 | C187: 2017-03-31 | D187: 3-2204 | E187: 1 | F187: 7. Получени лихви | G187: ПП от оперативна дейност | H187: ='3-Отчет за паричния поток'!C17 -> 0
A188: "МБАЛ - ТЪРГОВИЩЕ" АД | B188: 125501290 | C188: 2017-03-31 | D188: 3-2204-1 | E188: 1 | F188: 8. Платени банкови такси и лихви върху краткосрочни заеми за оборотни средства | G188: ПП от оперативна дейност | H188: ='3-Отчет за паричния поток'!C18 -> 0
A189: "МБАЛ - ТЪРГОВИЩЕ" АД | B189: 125501290 | C189: 2017-03-31 | D189: 3-2205 | E189: 1 | F189: 9. Курсови разлики | G189: ПП от оперативна дейност | H189: ='3-Отчет за паричния поток'!C19 -> 0
A190: "МБАЛ - ТЪРГОВИЩЕ" АД | B190: 125501290 | C190: 2017-03-31 | D190: 3-2208 | E190: 1 | F190: 10. Други постъпления /плащания от оперативна дейност | G190: ПП от оперативна дейност | H190: ='3-Отчет за паричния поток'!C20 -> 59
A191: "МБАЛ - ТЪРГОВИЩЕ" АД | B191: 125501290 | C191: 2017-03-31 | D191: 3-2200 | E191: 1 | F191: Нетен паричен поток от оперативна дейност (А): | G191: ПП от оперативна дейност | H191: ='3-Отчет за паричния поток'!C21 -> -29
A192: "МБАЛ - ТЪРГОВИЩЕ" АД | B192: 125501290 | C192: 2017-03-31 | D192: 3-2301 | E192: 1 | F192: 1. Покупка на дълготрайни активи | G192: ПП от инвестиционна дейност | H192: ='3-Отчет за паричния поток'!C23 -> 0
A193: "МБАЛ - ТЪРГОВИЩЕ" АД | B193: 125501290 | C193: 2017-03-31 | D193: 3-2301-1 | E193: 1 | F193: 2. Постъпления от продажба на дълготрайни активи | G193: ПП от инвестиционна дейност | H193: ='3-Отчет за паричния поток'!C24 -> 0
A194: "МБАЛ - ТЪРГОВИЩЕ" АД | B194: 125501290 | C194: 2017-03-31 | D194: 3-2302 | E194: 1 | F194: 3. Предоставени заеми | G194: ПП от инвестиционна дейност | H194: ='3-Отчет за паричния поток'!C25 -> 0
A195: "МБАЛ - ТЪРГОВИЩЕ" АД | B195: 125501290 | C195: 2017-03-31 | D195: 3-2302-1 | E195: 1 | F195: 4. Възстановени (платени) предоставени заеми, в т.ч. по финансов лизинг | G195: ПП от инвестиционна дейност | H195: ='3-Отчет за паричния поток'!C26 -> 0
A196: "МБАЛ - ТЪРГОВИЩЕ" АД | B196: 125501290 | C196: 2017-03-31 | D196: 3-2302-2 | E196: 1 | F196: 5. Получени лихви по предоставени заеми | G196: ПП от инвестиционна дейност | H196: ='3-Отчет за паричния поток'!C27 -> 0
A197: "МБАЛ - ТЪРГОВИЩЕ" АД | B197: 125501290 | C197: 2017-03-31 | D197: 3-2302-3 | E197: 1 | F197: 6. Покупка на инвестиции | G197: ПП от инвестиционна дейност | H197: ='3-Отчет за паричния поток'!C28 -> 0
A198: "МБАЛ - ТЪРГОВИЩЕ" АД | B198: 125501290 | C198: 2017-03-31 | D198: 3-2302-4 | E198: 1 | F198: 7. Постъпления от продажба на инвестиции | G198: ПП от инвестиционна дейност | H198: ='3-Отчет за паричния поток'!C29 -> 0
A199: "МБАЛ - ТЪРГОВИЩЕ" АД | B199: 125501290 | C199: 2017-03-31 | D199: 3-2303 | E199: 1 | F199: 8. Получени дивиденти от инвестиции | G199: ПП от инвестиционна дейност | H199: ='3-Отчет за паричния поток'!C30 -> 0
A200: "МБАЛ - ТЪРГОВИЩЕ" АД | B200: 125501290 | C200: 2017-03-31 | D200: 3-2305 | E200: 1 | F200: 9. Курсови разлики | G200: ПП от инвестиционна дейност | H200: ='3-Отчет за паричния поток'!C31 -> 0
... 303 more rows

Sheet Nomenklaturi (hidden)
A1: на консолидирана основа
A2: на индивидуална основа
A5: Публично дружество
A6: Емитент на облигации
A7: Публично дружество/Емитент на облигации
A8: АДСИЦ
A9: Лице по §1д от ЗППЦК
A11: Акции
A12: Облигации
A13: Други
